Workbook

Sheet Open
A2: MYRISTOL $2000 Open
A3: FUT | B3: DER | C3: Age Inc | D3: HS | E3: Draw | F3: Rider Name | G3: Horse Name | H3: Pen | I3: Time | J3: Final Time | K3: Placing | L3: Money Earned | N3: D Placing | P3: Split
C4: A | E4: 105 | F4: Tillar Murray | G4: Royal Star Commander | I4: 15.629 | K4: 1D 2nd | L4: 806 | N4: 1D
C5: A | E5: 72 | F5: Tillar Murray | G5: Dirty Dan Stinson | I5: 15.771 | K5: 1D 6th | L5: 282.24 | N5: 2D | P5: 0.5
C6: A | D6: X | E6: 42 | F6: Lisa Nicholas | G6: Stoli My Guy | I6: 15.773 | K6: 1D 7th | L6: 201.6 | N6: 3D | P6: 0.5
C7: A | E7: 36 | F7: Tillar Murray | G7: Casino Perks | I7: 15.826 | K7: 1D 8th | L7: 161.28 | N7: 4D | P7: 0.5
C8: A | E8: 207 | F8: Sarah Rau | G8: Shes So Fuel | I8: 16.003 | N8: 5D | P8: 0.5
C9: A | E9: 232 | F9: Marilyn Melvin | G9: Flits Meverick | I9: 16.003
C10: A | E10: 194 | F10: Annabelle Martin | G10: DK Makin My Way | I10: 16.134 | K10: 2D 4th | L10: 436.8 | N10: # Entered
B11: X | C11: A | E11: 262 | F11: Tami Semas | G11: A Pepper Smoothie | I11: 16.169 | K11: 2D 5th | L11: 336 | N11: =COUNTA(F4:F503) -> 288
C12: A | E12: 241 | F12: Phillip Kenyon | G12: Tillies Hayday | I12: 16.178 | K12: 2D 7th | L12: 168
C13: A | E13: 239 | F13: Lacy Wilson | G13: Bugs In My Kaluha | I13: 16.428 | N13: # Ran
C14: A | E14: 268 | F14: Ky Russiff | G14: CM Nonstop Bronsin | I14: 16.456 | N14: =COUNTA(I4:I503) -> 288
C15: A | E15: 69 | F15: Jennifer Abbott | G15: Wendall Jackson | I15: 16.534
C16: A | E16: 7 | F16: Shantell Hayes | G16: Perk Up and Dash | I16: 16.6 | K16: 3D 1st | L16: 645.12 | N16: # Left
A17: X | C17: A | E17: 234 | F17: Brooke Kelley | G17: Nu Bueno Karma | I17: 16.647 | N17: =$N$11-$N$14 -> 0
C18: A | E18: 246 | F18: Kelsey Gordon | G18: Pete | I18: 16.658
C19: A | E19: 233 | F19: Ky Russiff | G19: CM Bronsins Golden Boy | I19: 16.786
C20: A | E20: 65 | F20: Molly Steffen | G20: Frosted Country | I20: 16.838
C21: A | E21: 266 | F21: Lorinda Van Newkirk | G21: Rare Shake CEO | I21: 16.952
C22: A | E22: 119 | F22: Kylena Hager | G22: BarB Firewatersteel | I22: 16.967
C23: A | E23: 3 | F23: Kim Eisen | G23: Dollar | I23: 17.173
C24: A | E24: 17 | F24: Tiffany Cox | G24: C3 Lacy | I24: 17.229
C25: A | E25: 96 | F25: Tiffany Durham | G25: Hard Rock Samantha | I25: 17.231
C26: A | E26: 16 | F26: Natalie Steed | G26: Seville De Coup | I26: 17.233
C27: A | E27: 48 | F27: Kelsey Howard | G27: Triple Gold Time | I27: 17.283
C28: A | E28: 229 | F28: Trudy Holloway | G28: A Southern High KL | I28: 17.471
C29: A | E29: 107 | F29: Jennifer Abbott | G29: Blazin Wagon | I29: 17.653 | K29: 5D 3rd | L29: 228.48
C30: A | E30: 149 | F30: Lauren Thomas | G30: Dragons Fancy Pistol | I30: 17.914
C31: A | E31: 269 | F31: Jessica Quintana | G31: Different Eyes | I31: 18.086
C32: A | E32: 230 | F32: Melinda Trosper | G32: Derby | I32: 18.255
C33: A | E33: 44 | F33: Tiffany Durham | G33: Dashin Luke Perry | I33: 19.165
C34: A | E34: 203 | F34: Lynn Wisenant | G34: Hezawonderstreakin | I34: nt
C35: A | E35: 205 | F35: Phillip Kenyon | G35: Makeita Mujito | I35: nt
C36: A | E36: 94 | F36: Carissa Bryant | G36: LLP Shock N Awe | I36: nt16.013
C37: A | E37: 137 | F37: Carissa Bryant | G37: Flaming Money Buggy | I37: nt16.138
C38: A | E38: 53 | F38: Shantell Hayes | G38: VF Runnawaylocomotive | I38: nt16.234
C39: A | D39: X | E39: 63 | F39: Trina Murray | G39: Fuel For Dash | I39: nt16.451
C40: A | E40: 177 | F40: Andrea Busby | G40: Guys Girl Power | I40: nt16.752
C41: A | E41: 237 | F41: Betina Felton | G41: Twist | I41: nt17.114
C42: A | E42: 116 | F42: Carey Benton | G42: Prime Thriftshop | I42: nt17.495
C43: A | E43: 138 | F43: Mandy Holloway | G43: First Touch Of Fire | I43: nt17.851
C44: S | E44: 204 | F44: Judy Melvin | G44: Famous Kid Rock | I44: 15.926
C45: S | E45: 128 | F45: Dina Allred | G45: Chasin Tornadoes | I45: 16.096
C46: S | E46: 133 | F46: Patricia Oates | G46: Mr Rocket Prospector | I46: 16.13 | K46: 2D 3rd | L46: 571.2
C47: S | E47: 175 | F47: Sherrie Barnes | G47: Famous Little Jet | I47: 16.176 | K47: 2D 6th | L47: 235.2
C48: S | E48: 121 | F48: Kathy Vasquez | G48: Cool Ta Fame | I48: 16.361
B49: X | C49: S | E49: 84 | F49: Kathy Vasquez | G49: Sail On To Fame | I49: 16.417
C50: S | E50: 258 | F50: Belinda Coppinger | G50: MS America Fame | I50: 16.417
C51: S | E51: 157 | F51: Lynn Saunders | G51: Chumley | I51: 16.424
C52: S | E52: 259 | F52: Jill Harbour | G52: Bullit | I52: 16.468
C53: S | E53: 265 | F53: Terry Quintana | G53: Jerry | I53: 16.587
C54: S | E54: 148 | F54: Jodi Stovall | G54: Ms French Drifter | I54: 16.633 | K54: 3D 8th | L54: 107.52
C55: S | E55: 123 | F55: Lynn Saunders | G55: Popcorn | I55: 16.659
C56: S | E56: 54 | F56: Connie Randolf | G56: Hot Rod Kitty Catt | I56: 16.665
C57: S | E57: 176 | F57: Lisa Wernli | G57: Flashes Fine Effort | I57: 16.778
C58: S | E58: 25 | F58: DeeDee Jordan | G58: First Rappin Judge | I58: 16.838
C59: S | E59: 67 | F59: DeeDee Jordan | G59: Lil Yella Draw | I59: 16.991
A60: X | C60: S | E60: 40 | F60: Ken English | G60: Smart Cats Fame | I60: 17.017
C61: S | E61: 222 | F61: Belinda Coppinger | G61: Chisled On My Mind | I61: 17.023
C62: S | E62: 85 | F62: Debbie Rabb | G62: VF Freaky Foose | I62: 17.038
C63: S | E63: 66 | F63: Simone Elmore | G63: Badger A Conchadrift | I63: 17.078
C64: S | E64: 79 | F64: Susie Luschar | G64: Carmeleo Gold | I64: 17.272
C65: S | E65: 224 | F65: Roxy Tew | G65: Dollar | I65: 17.4
A66: X | C66: S | E66: 81 | F66: Ken English | G66: Happy And I Know It | I66: 17.579
C67: S | E67: 319 | F67: Marlyn Bland | G67: Bentley | I67: 18.378
C68: S | E68: 9 | F68: Melanie Self | G68: Ole Mans Aloha | I68: 19.142
C69: S | E69: 43 | F69: Kevin Davis | G69: Gibbs | I69: 21.116
C70: S | E70: 98 | F70: Laura Creel | G70: Frenchmans Docs RX | I70: nt16.430
C71: S | E71: 242 | F71: Diana Wilson | G71: Man Of Honor | I71: nt16.837
C72: S | E72: 109 | F72: Connie Tobiasson | G72: Pure D Azucar | I72: nt17.092
C73: S | E73: 127 | F73: Debbie Rabb | G73: Firewater Fritz | I73: nt17.499
C74: S | E74: 2 | F74: Judi Veeder | G74: GL Tuff | I74: nt17.547
C75: S | E75: 199 | F75: Winnie Archer | G75: TWF Fan The Flame | I75: nt17.589
C76: S | E76: 5 | F76: Kathy Minteer | G76: Little Bit | I76: nt19.685
C77: S | E77: 182 | F77: Mary Kaplan | G77: Leddy | I77: nt25.059
B78: X | C78: Y | E78: 19 | F78: Mekenna Davis | G78: Dreamin N French | I78: 15.83
C79: Y | E79: 134 | F79: Josie Hartmann | G79: TR Illumniatror Cash | I79: 15.976
C80: Y | E80: 267 | F80: Jada Trosper | G80: Pass The Firewater | I80: 16
C81: Y | E81: 28 | F81: Schylar Nicholas | G81: Perrywater Dash | I81: 16.016
C82: Y | E82: 197 | F82: Riley Cook | G82: Crown Royal Morning | I82: 16.07
C83: Y | E83: 189 | F83: Laney Fowler | G83: My Epic Miracle | I83: 16.376
C84: Y | E84: 231 | F84: Jada Trosper | G84: MNMS Roany Pony | I84: 16.508
C85: Y | E85: 145 | F85: Samantha Willoughby | G85: Moose | I85: 16.563
C86: Y | E86: 216 | F86: Laney Fowler | G86: Cookie Bar Nibbles | I86: 16.612 | K86: 3D 4th | L86: 349.44
C87: Y | E87: 173 | F87: Samantha Willoughby | G87: Fabulous Twister | I87: 16.623 | K87: 3D 6th | L87: 188.16
C88: Y | E88: 29 | F88: Aubree Godwin | G88: Flits Godwin | I88: 16.713
C89: Y | E89: 38 | F89: Presleigh Akers | G89: Short NitaLena | I89: 16.803
C90: Y | E90: 129 | F90: Jolie Smith | G90: Docs Lil Leo | I90: 16.895
C91: Y | E91: 31 | F91: Taylor Coward | G91: Caraway In Sexy Lane | I91: 16.936
C92: Y | E92: 240 | F92: Brooke Hickey | G92: Sookie | I92: 16.96
C93: Y | E93: 287 | F93: Brooke Hickey | G93: Josey | I93: 16.971
C94: Y | E94: 400 | F94: Brayley Cooper | G94: Sassy | I94: 17.682 | K94: 5D 6th | L94: 94.08
C95: Y | E95: 190 | F95: Trinity Smith | G95: Big Shot Of Whiskey | I95: 17.729
C96: Y | E96: 202 | F96: Reece Cook | G96: Frost | I96: 17.964
C97: Y | E97: 186 | F97: Reece Cook | G97: Annie | I97: 18.518
C98: Y | E98: 238 | F98: Kaylee Lehrmann | G98: MFG Happenins In Rio | I98: 19.631
C99: Y | E99: 212 | F99: Samantha Willoughby | G99: Checkers Fancy Face | I99: nt16.256
C100: Y | E100: 103 | F100: Stormi Branch | G100: Demon | I100: nt16.649
C101: Y | E101: 228 | F101: Trinity Smith | G101: Double Shot Of Tequilla | I101: nt17.073
C102: Y | E102: 11 | F102: Mikayla Cearley | G102: TF Peppysmokensavage | I102: nt17.312
E103: 215 | F103: Lisa Thornton | G103: Straight Toasted | I103: 15.597 | K103: 1D 1st | L103: 967.68
E104: 82 | F104: Jamie Wilson | G104: Check Your Bet | I104: 15.63 | K104: 1D 3rd | L104: 685.44
E105: 261 | F105: Shelly Shields | G105: Toast To Val | I105: 15.685 | K105: 1D 4th | L105: 524.16
E106: 227 | F106: Schelli Creacy | I106: 15.732 | K106: 1D 5th | L106: 403.2
E107: 147 | F107: Rachel Primm | G107: Dashin Julene | I107: 15.848
E108: 172 | F108: Shea Durfey | G108: H1 | I108: 15.849
A109: X | E109: 88 | F109: Jessie Domann | G109: IRoseSuchaStinson | I109: 15.917
A110: X | E110: 293 | F110: Shelly Shields | G110: Streakers Queen | I110: 15.938
A111: X | E111: 78 | F111: Jordon Briggs | G111: Famous Lil Jet | I111: 15.947
E112: 97 | F112: Scamper Cole | G112: DM Streak Aboo | I112: 16.089
E113: 171 | F113: Nisa Berry | G113: VF Look Im Back | I113: 16.09
E114: 120 | F114: Sadie Weldon | G114: Boots Classy Perks | I114: 16.103 | K114: 2D 1st | L114: 806.4
E115: 244 | F115: Brian Ramirez | G115: Holly | I115: 16.104 | K115: 2D 2nd | L115: 672
D116: X | E116: 271 | F116: Sonyia Raborn | G116: Ima Sharp French Guy | I116: 16.206 | K116: 2D 8th | L116: 134.4
B117: X | D117: X | E117: 20 | F117: Laura Avery | G117: Letta Trouble Doit | I117: 16.209
E118: 122 | F118: Stacey Gates | G118: Johnny On The Rocks | I118: 16.217
B119: X | E119: 187 | F119: Kelly Valdez | G119: Dashinlikafame | I119: 16.226
E120: 201 | F120: Adrianna Ruckteschler | G120: Sakem Rare Rose | I120: 16.29
E121: 86 | F121: Sadie Weldon | G121: WB Runaway Pumpkin | I121: 16.303
E122: 27 | F122: Cheyenne Baldwin | G122: Streakin The Lane | I122: 16.309
E123: 71 | F123: Scamper Cole | G123: A Striking Fling | I123: 16.332
A124: X | E124: 213 | F124: Nisa Berry | G124: Code Name Fame | I124: 16.337
E125: 113 | F125: Monika Dike | G125: Firin For Jack | I125: 16.338
A126: X | E126: 56 | F126: Jordon Briggs | G126: One First Class Lady | I126: 16.346
E127: 110 | F127: Rachel Primm | G127: Gys Amberetto | I127: 16.347
E128: 181 | F128: Carrie Putnam | G128: Ace | I128: 16.361
B129: X | E129: 206 | F129: Ashley Martinkus | G129: Famous First Flight | I129: 16.364
E130: 126 | F130: Sherry Saunders | G130: Skeeter | I130: 16.419
E131: 112 | F131: Hannah Hertel | G131: Egos Moving Effort | I131: 16.438
E132: 276 | F132: Carissa Stoner | G132: H1 | I132: 16.441
E133: 200 | F133: Marilyn Melvin | G133: Flame | I133: 16.456
E134: 245 | F134: Traci Nelson | G134: C | I134: 16.467
E135: 125 | F135: Nicole Riggle | G135: Famous Desire | I135: 16.479
E136: 131 | F136: Kristi Smith | G136: ELS Dyna Flow Hooter | I136: 16.517
E137: 193 | F137: Dakota Bingham | G137: Fendi | I137: 16.517
E138: 95 | F138: Patricia Oates | G138: Holy Fire N Money | I138: 16.522
E139: 92 | F139: Debra Cooper | G139: Rapid Firing Pass | I139: 16.533
E140: 236 | F140: Lauren Jacobs | G140: Katness | I140: 16.536
E141: 160 | F141: Hilary Hightower | G141: No Effort Makin Cash | I141: 16.546
E142: 162 | F142: Lynn Cox | G142: Itchy | I142: 16.565
E143: 26 | F143: Jessica McRae | G143: Bubbas Lil Harlana | I143: 16.577
E144: 76 | F144: Jamie Newcomer | G144: Flits Curly Locks | I144: 16.577
E145: 62 | F145: Lea Baze | G145: A Guy With Try | I145: 16.582
E146: 89 | F146: Stacey Gates | G146: PH Firewaters Payday | I146: 16.589
E147: 270 | F147: Brittany Jones | G147: Hearthrobs Dream | I147: 16.601 | K147: 3D 2nd | L147: 537.6
B148: X | E148: 174 | F148: Ashley Martinkus | G148: Famous Blazin Jane | I148: 16.605 | K148: 3D 3rd | L148: 456.96
E149: 151 | F149: Lylan Corey | G149: Bogies French Gamble | I149: 16.622 | K149: 3D 5th | L149: 268.8
E150: 57 | F150: Lacy Billingsley | G150: VF High N Famous | I150: 16.628 | K150: 3D 7th | L150: 134.4
E151: 39 | F151: Karen Shelley | G151: Flying Bar Bailey | I151: 16.639
E152: 15 | F152: Lacy Billingsley | G152: Dirty Dizco Diane 37 | I152: 16.642
E153: 30 | F153: Taygen Sufferling | G153: Plain Brown N Shiney | I153: 16.65
A154: X | E154: 150 | F154: Kelly Valdez | G154: Wicked French Chick | I154: 16.657
E155: 254 | F155: Gena Franklin | G155: SS Streaky Me | I155: 16.659
A156: X | E156: 106 | F156: Jessica Morris | G156: Wonder If Im Phamous | I156: 16.667
E157: 12 | F157: Jordon Briggs | G157: KN Fabulous Salsa | I157: 16.672
E158: 196 | F158: Shea Durfey | G158: H2 | I158: 16.675
E159: 249 | F159: Jo Kirby | G159: Heavenly Joak | I159: 16.679
E160: 178 | F160: Bonnie Ray | G160: Ed | I160: 16.681
E161: 198 | F161: Linda Schroedter | G161: Ima Gold Champion | I161: 16.687
E162: 49 | F162: Karissa Jones | G162: Anita Lot Of Cash | I162: 16.688
E163: 226 | F163: Shelby Stansbury | G163: 646 Dezzy Rae | I163: 16.692
E164: 114 | F164: Jessica Sitzes | G164: Miss Mighty Invictus | I164: 16.712
E165: 141 | F165: Tami Claflin | G165: Thursday Cash A Chex | I165: 16.721
A166: X | E166: 192 | F166: Hilary Hightower | G166: This Blondes Not Dun | I166: 16.722
E167: 264 | F167: Kristin Dorman | G167: Easy | I167: 16.732
E168: 251 | F168: Nikki Zimmerman | G168: Fame Us French Kiss | I168: 16.767
E169: 139 | F169: Tandi Remy | G169: LT Red Native | I169: 16.816
E170: 210 | F170: Shannon Black | G170: Bay | I170: 16.822
E171: 102 | F171: Shylah Love | G171: Hayday Lady Bug | I171: 16.83
E172: 111 | F172: Bailey Yaussi | G172: Dash Ta Guy | I172: 16.839
E173: 13 | F173: Michaela Zebro | G173: Streakin French Bell | I173: 16.861
E174: 70 | F174: Jolene Jones | G174: Cause it’s a Chex | I174: 16.867
E175: 167 | F175: Ashley Enos | G175: Elmer | I175: 16.867
E176: 24 | F176: Lea Baze | G176: Sheza Smooth Dash | I176: 16.881
E177: 273 | F177: Samantha Grimsley | G177: Miss Daisy Mae | I177: 16.914
E178: 60 | F178: Jessi Wade | G178: A Downrite Player | I178: 16.919
E179: 188 | F179: JO Fisher | G179: H2 | I179: 16.934
E180: 166 | F180: JO Fisher | G180: H1 | I180: 16.935
E181: 32 | F181: Sam Lindenfield | G181: BA First Down Legend | I181: 16.946
E182: 220 | F182: Emma Nelson | G182: ROlex | I182: 16.948
A183: X | E183: 185 | F183: Jenna Napier | G183: Frenchmans Dually | I183: 16.982
E184: 90 | F184: Jenae Smith | G184: Luck Be A French Gal | I184: 16.983
E185: 118 | F185: JT Cooper | G185: This Treis Breezes | I185: 16.988
B186: X | E186: 256 | F186: Candie Miner | G186: Kitnic | I186: 16.989
E187: 168 | F187: Chris Cox | G187: T J | I187: 17.023
E188: 235 | F188: Linda Schroedter | G188: Scenes Like Talent | I188: 17.04
E189: 209 | F189: Tara Hill | G189: Cashs Little Dollie | I189: 17.073
E190: 146 | F190: Crystral Benedict | G190: Blazin Bay | I190: 17.077
E191: 37 | F191: Kendall Jordan | G191: Guns On Fire | I191: 17.086
E192: 46 | F192: Jessie Domann | G192: Tango | I192: 17.108 | K192: 4D 1st | L192: 483.84
E193: 221 | F193: Dakota Bingham | G193: Ebony | I193: 17.121 | K193: 4D 2nd | L193: 403.2
E194: 115 | F194: Justice Phillips | G194: Sir Feature Paycheck | I194: 17.123 | K194: 4D 3rd/4th | L194: 303
E195: 257 | F195: Karen Manning | G195: Journey | I195: 17.123 | K195: 4D 3rd/4th | L195: 303
E196: 156 | F196: Lisa McLeroy | G196: Preacher | I196: 17.13 | K196: 4D 5th | L196: 201.6
E197: 279 | F197: Maddi Reich | I197: 17.135 | K197: 4D 6th | L197: 141.12
E198: 255 | F198: Claudia Parrott | G198: Hummer | I198: 17.145 | K198: 4D 7th | L198: 100.8
E199: 180 | F199: Janee' Ornelas | I199: 17.159 | K199: 4D 8th | L199: 80.64
E200: 252 | F200: Mary Alison Moekenga | G200: Vintage Cajun | I200: 17.174
E201: 260 | F201: Sierra Shields | G201: KHyber Prince | I201: 17.189
... 302 more rows

Sheet Senior
A1: Futurity | B1: Der | C1: Age Inct. | D1: BBR | E1: Draw | F1: Rider Name | G1: Horse Name | H1: Pen | I1: Time | J1: Final Time | K1: Placing | L1: Money Earned
E2: 1 | F2: Judy Melvin | G2: Famous Kid Rock | I2: 15.926 | K2: 1D 1st | L2: 143
E3: 2 | F3: Dina Allred | G3: Chasin Tornadoes | I3: 16.096 | K3: 1D 2nd | L3: 95
E4: 3 | F4: Patricia Oates | G4: Mr Rocket Prospector | I4: 16.13
E5: 4 | F5: Sherrie Barnes | G5: Famous Little Jet | I5: 16.176
E6: 5 | F6: Kathy Vasquez | G6: Cool Ta Fame | I6: 16.361
E7: 6 | F7: Kathy Vasquez | G7: Sail On To Fame | I7: 16.417
E8: 7 | F8: Belinda Coppinger | G8: MS America Fame | I8: 16.417
E9: 8 | F9: Lynn Saunders | G9: Chumley | I9: 16.424
E10: 9 | F10: Jill Harbour | G10: Bullit | I10: 16.468 | K10: 2D 1st | L10: 122
E11: 10 | F11: Terry Quintana | G11: Jerry | I11: 16.587 | K11: 2D 2nd | L11: 82
E12: 11 | F12: Jodi Stovall | G12: Ms French Drifter | I12: 16.633
E13: 12 | F13: Lynn Saunders | G13: Popcorn | I13: 16.659
E14: 13 | F14: Connie Randolf | G14: Hot Rod Kitty Catt | I14: 16.665
E15: 14 | F15: Lisa Wernli | G15: Flashes Fine Effort | I15: 16.778
E16: 15 | F16: DeeDee Jordan | G16: First Rappin Judge | I16: 16.838
E17: 16 | F17: DeeDee Jordan | G17: Lil Yella Draw | I17: 16.991 | K17: 3D 1st | L17: 82
E18: 17 | F18: Ken English | G18: Smart Cats Fame | I18: 17.017 | K18: 3D 2nd | L18: 54
E19: 18 | F19: Belinda Coppinger | G19: Chisled On My Mind | I19: 17.023
E20: 19 | F20: Debbie Rabb | G20: VF Freaky Foose | I20: 17.038
E21: 20 | F21: Simone Elmore | G21: Badger A Conchadrift | I21: 17.078
E22: 21 | F22: Susie Luschar | G22: Carmeleo Gold | I22: 17.272
E23: 22 | F23: Roxy Tew | G23: Dollar | I23: 17.4
E24: 23 | F24: Ken English | G24: Happy And I Know It | I24: 17.579 | K24: 4D 1st | L24: 61
E25: 24 | F25: Marlyn Bland | G25: Bentley | I25: 18.378 | K25: 4D 2nd | L25: 41
E26: 25 | F26: Melanie Self | G26: Ole Mans Aloha | I26: 19.142
E27: 26 | F27: Kevin Davis | G27: Gibbs | I27: 21.116
E28: 27 | F28: Laura Creel | G28: Frenchmans Docs RX | I28: nt16.430
E29: 28 | F29: Diana Wilson | G29: Man Of Honor | I29: nt16.837
E30: 29 | F30: Connie Tobiasson | G30: Pure D Azucar | I30: nt17.092
E31: 30 | F31: Debbie Rabb | G31: Firewater Fritz | I31: nt17.499
E32: 31 | F32: Judi Veeder | G32: GL Tuff | I32: nt17.547
E33: 32 | F33: Winnie Archer | G33: TWF Fan The Flame | I33: nt17.589
E34: 33 | F34: Kathy Minteer | G34: Little Bit | I34: nt19.685
E35: 34 | F35: Mary Kaplan | G35: Leddy | I35: nt25.059
E36: 35
E37: 36
E38: 37
E39: 38
E40: 39
E41: 40
E42: 41 | J42: =IF(OR(H42=5,H42=10, H42=15, H42="BP",H42="SCR"),"NT",I42) -> 0
E43: 42 | J43: 0
E44: 43 | J44: 0
E45: 44 | J45: 0
E46: 45 | J46: 0
E47: 46 | J47: 0
E48: 47 | J48: 0
E49: 48 | J49: 0
E50: 49 | J50: 0
E51: 50 | J51: 0
E52: 51 | J52: 0
E53: 52 | J53: 0
E54: 53 | J54: 0
E55: 54 | J55: 0
E56: 55 | J56: 0
E57: 56 | J57: 0
E58: 57 | J58: 0
E59: 58 | J59: 0
E60: 59 | J60: 0
E61: 60 | J61: 0
E62: 61 | J62: 0
E63: 62 | J63: 0
E64: 63 | J64: 0
E65: 64 | J65: 0
E66: 65 | J66: 0
E67: 66 | J67: 0
E68: 67 | J68: 0
E69: 68 | J69: 0
E70: 69 | J70: 0
E71: 70 | J71: 0
E72: 71 | J72: 0
E73: 72 | J73: 0
E74: 73 | J74: 0
E75: 74 | J75: 0
E76: 75 | J76: 0
E77: 76 | J77: 0
E78: 77 | J78: 0
E79: 78 | J79: 0
E80: 79 | J80: 0
E81: 80 | J81: 0
E82: 81 | J82: 0
E83: 82 | J83: 0
E84: 83 | J84: 0
E85: 84 | J85: 0
E86: 85 | J86: 0
E87: 86 | J87: 0
E88: 87 | J88: 0
E89: 88 | J89: 0
E90: 89 | J90: 0
E91: 90 | J91: 0
E92: 91 | J92: 0
E93: 92 | J93: 0
E94: 93 | J94: 0
E95: 94 | J95: 0
E96: 95 | J96: 0
E97: 96 | J97: 0
E98: 97 | J98: 0
E99: 98 | J99: 0
E100: 99 | J100: 0
E101: 100 | J101: 0
E102: 101 | J102: 0
E103: 102 | J103: 0
E104: 103 | J104: 0
E105: 104 | J105: 0
E106: 105 | J106: =IF(OR(H106=5,H106=10, H106=15, H106="BP",H106="SCR"),"NT",I106) -> 0
E107: 106 | J107: 0
E108: 107 | J108: 0
E109: 108 | J109: 0
E110: 109 | J110: 0
E111: 110 | J111: 0
E112: 111 | J112: 0
E113: 112 | J113: 0
E114: 113 | J114: 0
E115: 114 | J115: 0
E116: 115 | J116: 0
E117: 116 | J117: 0
E118: 117 | J118: 0
E119: 118 | J119: 0
E120: 119 | J120: 0
E121: 120 | J121: 0
E122: 121 | J122: 0
E123: 122 | J123: 0
E124: 123 | J124: 0
E125: 124 | J125: 0
E126: 125 | J126: 0
E127: 126 | J127: 0
E128: 127 | J128: 0
E129: 128 | J129: 0
E130: 129 | J130: 0
E131: 130 | J131: 0
E132: 131 | J132: 0
E133: 132 | J133: 0
E134: 133 | J134: 0
E135: 134 | J135: 0
E136: 135 | J136: 0
E137: 136 | J137: 0
E138: 137 | J138: 0
E139: 138 | J139: 0
E140: 139 | J140: 0
E141: 140 | J141: 0
E142: 141 | J142: 0
E143: 142 | J143: 0
E144: 143 | J144: 0
E145: 144 | J145: 0
E146: 145 | J146: 0
E147: 146 | J147: 0
E148: 147 | J148: 0
E149: 148 | J149: 0
E150: 149 | J150: 0
E151: 150 | J151: 0
E152: 151 | J152: 0
E153: 152 | J153: 0
E154: 153 | J154: 0
E155: 154 | J155: 0
E156: 155 | J156: 0
E157: 156 | J157: 0
E158: 157 | J158: 0
E159: 158 | J159: 0
E160: 159 | J160: 0
E161: 160 | J161: 0
E162: 161 | J162: 0
E163: 162 | J163: 0
E164: 163 | J164: 0
E165: 164 | J165: 0
E166: 165 | J166: 0
E167: 166 | J167: 0
E168: 167 | J168: 0
E169: 168 | J169: 0
E170: 169 | J170: =IF(OR(H170=5,H170=10, H170=15, H170="BP",H170="SCR"),"NT",I170) -> 0
E171: 170 | J171: 0
E172: 171 | J172: 0
E173: 172 | J173: 0
E174: 173 | J174: 0
E175: 174 | J175: 0
E176: 175 | J176: 0
E177: 176 | J177: 0
E178: 177 | J178: 0
E179: 178 | J179: 0
E180: 179 | J180: 0
E181: 180 | J181: 0
E182: 181 | J182: 0
E183: 182 | J183: 0
E184: 183 | J184: 0
E185: 184 | J185: 0
E186: 185 | J186: 0
E187: 186 | J187: 0
E188: 187 | J188: 0
E189: 188 | J189: 0
E190: 189 | J190: 0
E191: 190 | J191: 0
E192: 191 | J192: 0
E193: 192 | J193: 0
E194: 193 | J194: 0
E195: 194 | J195: 0
E196: 195 | J196: 0
E197: 196 | J197: 0
E198: 197 | J198: 0
E199: 198 | J199: 0
E200: 199 | J200: 0
... 101 more rows

Sheet Adult
A1: Futurity | B1: Der | C1: Age Inct. | D1: BBR | E1: Draw | F1: Rider Name | G1: Horse Name | H1: Pen | I1: Time | J1: Final Time | K1: Placing | L1: Money Earned
E2: 1 | F2: Tillar Murray | G2: Royal Star Commander | I2: 15.629 | K2: 1D 1st | L2: 168
E3: 2 | F3: Tillar Murray | G3: Dirty Dan Stinson | I3: 15.771 | K3: 1D 2nd | L3: 112
E4: 3 | F4: Lisa Nicholas | G4: Stoli My Guy | I4: 15.773
E5: 4 | F5: Tillar Murray | G5: Casino Perks | I5: 15.826
E6: 5 | F6: Sarah Rau | G6: Shes So Fuel | I6: 16.003
E7: 6 | F7: Marilyn Melvin | G7: Flits Meverick | I7: 16.003
E8: 7 | F8: Annabelle Martin | G8: DK Makin My Way | I8: 16.134 | K8: 2D 1st | L8: 144
E9: 8 | F9: Tami Semas | G9: A Pepper Smoothie | I9: 16.169 | K9: 2D 2nd | L9: 96
E10: 9 | F10: Phillip Kenyon | G10: Tillies Hayday | I10: 16.178
E11: 10 | F11: Lacy Wilson | G11: Bugs In My Kaluha | I11: 16.428
E12: 11 | F12: Ky Russiff | G12: CM Nonstop Bronsin | I12: 16.456
E13: 12 | F13: Jennifer Abbott | G13: Wendall Jackson | I13: 16.534
E14: 13 | F14: Shantell Hayes | G14: Perk Up and Dash | I14: 16.6
E15: 14 | F15: Brooke Kelley | G15: Nu Bueno Karma | I15: 16.647 | K15: 3D 1st | L15: 96
E16: 15 | F16: Kelsey Gordon | G16: Pete | I16: 16.658 | K16: 3D 2nd | L16: 64
E17: 16 | F17: Ky Russiff | G17: CM Bronsins Golden Boy | I17: 16.786
E18: 17 | F18: Molly Steffen | G18: Frosted Country | I18: 16.838
E19: 18 | F19: Lorinda Van Newkirk | G19: Rare Shake CEO | I19: 16.952
E20: 19 | F20: Kylena Hager | G20: BarB Firewatersteel | I20: 16.967
E21: 20 | F21: Kim Eisen | G21: Dollar | I21: 17.173 | K21: 4D 1st | L21: 72
E22: 21 | F22: Tiffany Cox | G22: C3 Lacy | I22: 17.229 | K22: 4D 2nd | L22: 48
E23: 22 | F23: Tiffany Durham | G23: Hard Rock Samantha | I23: 17.231
E24: 23 | F24: Natalie Steed | G24: Seville De Coup | I24: 17.233
E25: 24 | F25: Kelsey Howard | G25: Triple Gold Time | I25: 17.283
E26: 25 | F26: Trudy Holloway | G26: A Southern High KL | I26: 17.471
E27: 26 | F27: Jennifer Abbott | G27: Blazin Wagon | I27: 17.653
E28: 27 | F28: Lauren Thomas | G28: Dragons Fancy Pistol | I28: 17.914
E29: 28 | F29: Jessica Quintana | G29: Different Eyes | I29: 18.086
E30: 29 | F30: Melinda Trosper | G30: Derby | I30: 18.255
E31: 30 | F31: Tiffany Durham | G31: Dashin Luke Perry | I31: 19.165
E32: 31 | F32: Lynn Wisenant | G32: Hezawonderstreakin | I32: nt
E33: 32 | F33: Phillip Kenyon | G33: Makeita Mujito | I33: nt
E34: 33 | F34: Carissa Bryant | G34: LLP Shock N Awe | I34: nt16.013
E35: 34 | F35: Carissa Bryant | G35: Flaming Money Buggy | I35: nt16.138
E36: 35 | F36: Shantell Hayes | G36: VF Runnawaylocomotive | I36: nt16.234
E37: 36 | F37: Trina Murray | G37: Fuel For Dash | I37: nt16.451
E38: 37 | F38: Andrea Busby | G38: Guys Girl Power | I38: nt16.752
E39: 38 | F39: Betina Felton | G39: Twist | I39: nt17.114
E40: 39 | F40: Carey Benton | G40: Prime Thriftshop | I40: nt17.495
E41: 40 | F41: Mandy Holloway | G41: First Touch Of Fire | I41: nt17.851
E42: 41
E43: 42
E44: 43
E45: 44
E46: 45
E47: 46
E48: 47
E49: 48
E50: 49
E51: 50
E52: 51
E53: 52
E54: 53
E55: 54
E56: 55
E57: 56
E58: 57
E59: 58
E60: 59
E61: 60
E62: 61
E63: 62
E64: 63
E65: 64
E66: 65
E67: 66
E68: 67
E69: 68
E70: 69
E71: 70
E72: 71 | J72: =IF(OR(H72=5,H72=10, H72=15, H72="BP",H72="SCR"),"NT",I72) -> 0
E73: 72 | J73: 0
E74: 73 | J74: 0
E75: 74 | J75: 0
E76: 75 | J76: 0
E77: 76 | J77: 0
E78: 77 | J78: 0
E79: 78 | J79: 0
E80: 79 | J80: 0
E81: 80 | J81: 0
E82: 81 | J82: 0
E83: 82 | J83: 0
E84: 83 | J84: 0
E85: 84 | J85: 0
E86: 85 | J86: 0
E87: 86 | J87: 0
E88: 87 | J88: 0
E89: 88 | J89: 0
E90: 89 | J90: 0
E91: 90 | J91: 0
E92: 91 | J92: 0
E93: 92 | J93: 0
E94: 93 | J94: 0
E95: 94 | J95: 0
E96: 95 | J96: 0
E97: 96 | J97: 0
E98: 97 | J98: 0
E99: 98 | J99: 0
E100: 99 | J100: 0
E101: 100 | J101: 0
E102: 101 | J102: 0
E103: 102 | J103: 0
E104: 103 | J104: 0
E105: 104 | J105: 0
E106: 105 | J106: 0
E107: 106 | J107: 0
E108: 107 | J108: 0
E109: 108 | J109: 0
E110: 109 | J110: 0
E111: 110 | J111: 0
E112: 111 | J112: 0
E113: 112 | J113: 0
E114: 113 | J114: 0
E115: 114 | J115: 0
E116: 115 | J116: 0
E117: 116 | J117: 0
E118: 117 | J118: 0
E119: 118 | J119: 0
E120: 119 | J120: 0
E121: 120 | J121: 0
E122: 121 | J122: 0
E123: 122 | J123: 0
E124: 123 | J124: 0
E125: 124 | J125: 0
E126: 125 | J126: 0
E127: 126 | J127: 0
E128: 127 | J128: 0
E129: 128 | J129: 0
E130: 129 | J130: 0
E131: 130 | J131: 0
E132: 131 | J132: 0
E133: 132 | J133: 0
E134: 133 | J134: 0
E135: 134 | J135: 0
E136: 135 | J136: =IF(OR(H136=5,H136=10, H136=15, H136="BP",H136="SCR"),"NT",I136) -> 0
E137: 136 | J137: 0
E138: 137 | J138: 0
E139: 138 | J139: 0
E140: 139 | J140: 0
E141: 140 | J141: 0
E142: 141 | J142: 0
E143: 142 | J143: 0
E144: 143 | J144: 0
E145: 144 | J145: 0
E146: 145 | J146: 0
E147: 146 | J147: 0
E148: 147 | J148: 0
E149: 148 | J149: 0
E150: 149 | J150: 0
E151: 150 | J151: 0
E152: 151 | J152: 0
E153: 152 | J153: 0
E154: 153 | J154: 0
E155: 154 | J155: 0
E156: 155 | J156: 0
E157: 156 | J157: 0
E158: 157 | J158: 0
E159: 158 | J159: 0
E160: 159 | J160: 0
E161: 160 | J161: 0
E162: 161 | J162: 0
E163: 162 | J163: 0
E164: 163 | J164: 0
E165: 164 | J165: 0
E166: 165 | J166: 0
E167: 166 | J167: 0
E168: 167 | J168: 0
E169: 168 | J169: 0
E170: 169 | J170: 0
E171: 170 | J171: 0
E172: 171 | J172: 0
E173: 172 | J173: 0
E174: 173 | J174: 0
E175: 174 | J175: 0
E176: 175 | J176: 0
E177: 176 | J177: 0
E178: 177 | J178: 0
E179: 178 | J179: 0
E180: 179 | J180: 0
E181: 180 | J181: 0
E182: 181 | J182: 0
E183: 182 | J183: 0
E184: 183 | J184: 0
E185: 184 | J185: 0
E186: 185 | J186: 0
E187: 186 | J187: 0
E188: 187 | J188: 0
E189: 188 | J189: 0
E190: 189 | J190: 0
E191: 190 | J191: 0
E192: 191 | J192: 0
E193: 192 | J193: 0
E194: 193 | J194: 0
E195: 194 | J195: 0
E196: 195 | J196: 0
E197: 196 | J197: 0
E198: 197 | J198: 0
E199: 198 | J199: 0
E200: 199 | J200: =IF(OR(H200=5,H200=10, H200=15, H200="BP",H200="SCR"),"NT",I200) -> 0
... 101 more rows

Sheet Youth
A1: Futurity | B1: Der | C1: Age Inct. | D1: BBR | E1: Draw | F1: Rider Name | G1: Horse Name | H1: Pen | I1: Time | J1: Placing | K1: Money Earned
E2: 1 | F2: Mekenna Davis | G2: Dreamin N French | I2: 15.83 | J2: 1D 1st | K2: 105
E3: 2 | F3: Josie Hartmann | G3: TR Illumniatror Cash | I3: 15.976 | J3: 1D 2nd | K3: 70
E4: 3 | F4: Jada Trosper | G4: Pass The Firewater | I4: 16
E5: 4 | F5: Schylar Nicholas | G5: Perrywater Dash | I5: 16.016
E6: 5 | F6: Riley Cook | G6: Crown Royal Morning | I6: 16.07
E7: 6 | F7: Laney Fowler | G7: My Epic Miracle | I7: 16.376 | J7: 2D 1st | K7: 90
E8: 7 | F8: Jada Trosper | G8: MNMS Roany Pony | I8: 16.508 | J8: 2D 2nd | K8: 60
E9: 8 | F9: Samantha Willoughby | G9: Moose | I9: 16.563
E10: 9 | F10: Laney Fowler | G10: Cookie Bar Nibbles | I10: 16.612
E11: 10 | F11: Samantha Willoughby | G11: Fabulous Twister | I11: 16.623
E12: 11 | F12: Aubree Godwin | G12: Flits Godwin | I12: 16.713
E13: 12 | F13: Presleigh Akers | G13: Short NitaLena | I13: 16.803
E14: 13 | F14: Jolie Smith | G14: Docs Lil Leo | I14: 16.895 | J14: 3D 1st | K14: 60
E15: 14 | F15: Taylor Coward | G15: Caraway In Sexy Lane | I15: 16.936 | J15: 3D 2nd | K15: 40
E16: 15 | F16: Brooke Hickey | G16: Sookie | I16: 16.96
E17: 16 | F17: Brooke Hickey | G17: Josey | I17: 16.971
E18: 17 | F18: Brayley Cooper | G18: Sassy | I18: 17.682 | J18: 4D 1st | K18: 45
E19: 18 | F19: Trinity Smith | G19: Big Shot Of Whiskey | I19: 17.729 | J19: 4D 2nd | K19: 30
E20: 19 | F20: Reece Cook | G20: Frost | I20: 17.964
E21: 20 | F21: Reece Cook | G21: Annie | I21: 18.518
E22: 21 | F22: Kaylee Lehrmann | G22: MFG Happenins In Rio | I22: 19.631
E23: 22 | F23: Samantha Willoughby | G23: Checkers Fancy Face | I23: nt16.256
E24: 23 | F24: Stormi Branch | G24: Demon | I24: nt16.649
E25: 24 | F25: Trinity Smith | G25: Double Shot Of Tequilla | I25: nt17.073
E26: 25 | F26: Mikayla Cearley | G26: TF Peppysmokensavage | I26: nt17.312
E27: 26
E28: 27
E29: 28
E30: 29
E31: 30
E32: 31
E33: 32
E34: 33
E35: 34
E36: 35
E37: 36
E38: 37
E39: 38
E40: 39
E41: 40
E42: 41
E43: 42
E44: 43
E45: 44
E46: 45
E47: 46
E48: 47
E49: 48
E50: 49
E51: 50
E52: 51
E53: 52
E54: 53
E55: 54
E56: 55
E57: 56
E58: 57
E59: 58
E60: 59
E61: 60
E62: 61
E63: 62
E64: 63
E65: 64
E66: 65
E67: 66
E68: 67
E69: 68
E70: 69
E71: 70
E72: 71
E73: 72
E74: 73
E75: 74
E76: 75
E77: 76
E78: 77
E79: 78
E80: 79
E81: 80
E82: 81
E83: 82
E84: 83
E85: 84
E86: 85
E87: 86
E88: 87
E89: 88
E90: 89
E91: 90
E92: 91
E93: 92
E94: 93
E95: 94
E96: 95
E97: 96
E98: 97
E99: 98
E100: 99
E101: 100
E102: 101
E103: 102
E104: 103
E105: 104
E106: 105
E107: 106
E108: 107
E109: 108
E110: 109
E111: 110
E112: 111
E113: 112
E114: 113
E115: 114
E116: 115
E117: 116
E118: 117
E119: 118
E120: 119
E121: 120
E122: 121
E123: 122
E124: 123
E125: 124
E126: 125
E127: 126
E128: 127
E129: 128
E130: 129
E131: 130
E132: 131
E133: 132
E134: 133
E135: 134
E136: 135
E137: 136
E138: 137
E139: 138
E140: 139
E141: 140
E142: 141
E143: 142
E144: 143
E145: 144
E146: 145
E147: 146
E148: 147
E149: 148
E150: 149
E151: 150
E152: 151
E153: 152
E154: 153
E155: 154
E156: 155
E157: 156
E158: 157
E159: 158
E160: 159
E161: 160
E162: 161
E163: 162
E164: 163
E165: 164
E166: 165
E167: 166
E168: 167
E169: 168
E170: 169
E171: 170
E172: 171
E173: 172
E174: 173
E175: 174
E176: 175
E177: 176
E178: 177
E179: 178
E180: 179
E181: 180
E182: 181
E183: 182
E184: 183
E185: 184
E186: 185
E187: 186
E188: 187
E189: 188
E190: 189
E191: 190
E192: 191
E193: 192
E194: 193
E195: 194
E196: 195
E197: 196
E198: 197
E199: 198
E200: 199
... 101 more rows

Sheet Derby
A1: Futurity | B1: Der | C1: Age Inct. | D1: BBR | E1: Draw | F1: Rider Name | G1: Horse Name | H1: c/o | I1: Time | J1: Final Time | K1: Placing | L1: Money Earned
E2: 1 | F2: Mekenna Davis | G2: Dreamin N French | I2: 15.83 | K2: 1st | L2: 96
E3: 2 | F3: Tami Semas | G3: A Pepper Smoothie | I3: 16.169 | K3: 2nd | L3: 64
E4: 3 | F4: Laura Avery | G4: Letta Trouble Doit | I4: 16.209
E5: 4 | F5: Kelly Valdez | G5: Dashinlikafame | I5: 16.226
E6: 5 | F6: Ashley Martinkus | G6: Famous First Flight | I6: 16.364
E7: 6 | F7: Kathy Vasquez | G7: Sail On To Fame | I7: 16.417
E8: 7 | F8: Ashley Martinkus | G8: Famous Blazin Jane | I8: 16.605
E9: 8 | F9: Candie Miner | G9: Kitnic | I9: 16.989
E10: 9
E11: 10
E12: 11
E13: 12
E14: 13
E15: 14
E16: 15
E17: 16
E18: 17
E19: 18
E20: 19
E21: 20 | J21: =IF(OR(H21=5,H21=10, H21=15, H21="BP",H21="SCR"),"NT",I21) -> 0
E22: 21 | J22: 0
E23: 22 | J23: 0
E24: 23 | J24: 0
E25: 24 | J25: 0
E26: 25 | J26: 0
E27: 26 | J27: 0
E28: 27 | J28: 0
E29: 28 | J29: 0
E30: 29 | J30: 0
E31: 30 | J31: 0
E32: 31 | J32: 0
E33: 32 | J33: 0
E34: 33 | J34: 0
E35: 34 | J35: 0
E36: 35 | J36: 0
E37: 36 | J37: 0
E38: 37 | J38: 0
E39: 38 | J39: 0
E40: 39 | J40: 0
E41: 40 | J41: 0
E42: 41 | J42: 0
E43: 42 | J43: 0
E44: 43 | J44: 0
E45: 44 | J45: 0
E46: 45 | J46: 0
E47: 46 | J47: 0
E48: 47 | J48: 0
E49: 48 | J49: 0
E50: 49 | J50: 0
E51: 50 | J51: 0
E52: 51 | J52: 0
E53: 52 | J53: 0
E54: 53 | J54: 0
E55: 54 | J55: 0
E56: 55 | J56: 0
E57: 56 | J57: 0
E58: 57 | J58: 0
E59: 58 | J59: 0
E60: 59 | J60: 0
E61: 60 | J61: 0
E62: 61 | J62: 0
E63: 62 | J63: 0
E64: 63 | J64: 0
E65: 64 | J65: 0
E66: 65 | J66: 0
E67: 66 | J67: 0
E68: 67 | J68: 0
E69: 68 | J69: 0
E70: 69 | J70: 0
E71: 70 | J71: 0
E72: 71 | J72: 0
E73: 72 | J73: 0
E74: 73 | J74: 0
E75: 74 | J75: 0
E76: 75 | J76: 0
E77: 76 | J77: 0
E78: 77 | J78: 0
E79: 78 | J79: 0
E80: 79 | J80: 0
E81: 80 | J81: 0
E82: 81 | J82: =IF(OR(H82=5,H82=10, H82=15, H82="BP",H82="SCR"),"NT",I82) -> 0
E83: 82 | J83: 0
E84: 83 | J84: 0
E85: 84 | J85: 0
E86: 85 | J86: 0
E87: 86 | J87: 0
E88: 87 | J88: 0
E89: 88 | J89: 0
E90: 89 | J90: 0
E91: 90 | J91: 0
E92: 91 | J92: 0
E93: 92 | J93: 0
E94: 93 | J94: 0
E95: 94 | J95: 0
E96: 95 | J96: 0
E97: 96 | J97: 0
E98: 97 | J98: 0
E99: 98 | J99: 0
E100: 99 | J100: 0
E101: 100 | J101: 0
E102: 101 | J102: 0
E103: 102 | J103: 0
E104: 103 | J104: 0
E105: 104 | J105: 0
E106: 105 | J106: 0
E107: 106 | J107: 0
E108: 107 | J108: 0
E109: 108 | J109: 0
E110: 109 | J110: 0
E111: 110 | J111: 0
E112: 111 | J112: 0
E113: 112 | J113: 0
E114: 113 | J114: 0
E115: 114 | J115: 0
E116: 115 | J116: 0
E117: 116 | J117: 0
E118: 117 | J118: 0
E119: 118 | J119: 0
E120: 119 | J120: 0
E121: 120 | J121: 0
E122: 121 | J122: 0
E123: 122 | J123: 0
E124: 123 | J124: 0
E125: 124 | J125: 0
E126: 125 | J126: 0
E127: 126 | J127: 0
E128: 127 | J128: 0
E129: 128 | J129: 0
E130: 129 | J130: 0
E131: 130 | J131: 0
E132: 131 | J132: 0
E133: 132 | J133: 0
E134: 133 | J134: 0
E135: 134 | J135: 0
E136: 135 | J136: 0
E137: 136 | J137: 0
E138: 137 | J138: 0
E139: 138 | J139: 0
E140: 139 | J140: 0
E141: 140 | J141: 0
E142: 141 | J142: 0
E143: 142 | J143: 0
E144: 143 | J144: 0
E145: 144 | J145: 0
E146: 145 | J146: =IF(OR(H146=5,H146=10, H146=15, H146="BP",H146="SCR"),"NT",I146) -> 0
E147: 146 | J147: 0
E148: 147 | J148: 0
E149: 148 | J149: 0
E150: 149 | J150: 0
E151: 150 | J151: 0
E152: 151 | J152: 0
E153: 152 | J153: 0
E154: 153 | J154: 0
E155: 154 | J155: 0
E156: 155 | J156: 0
E157: 156 | J157: 0
E158: 157 | J158: 0
E159: 158 | J159: 0
E160: 159 | J160: 0
E161: 160 | J161: 0
E162: 161 | J162: 0
E163: 162 | J163: 0
E164: 163 | J164: 0
E165: 164 | J165: 0
E166: 165 | J166: 0
E167: 166 | J167: 0
E168: 167 | J168: 0
E169: 168 | J169: 0
E170: 169 | J170: 0
E171: 170 | J171: 0
E172: 171 | J172: 0
E173: 172 | J173: 0
E174: 173 | J174: 0
E175: 174 | J175: 0
E176: 175 | J176: 0
E177: 176 | J177: 0
E178: 177 | J178: 0
E179: 178 | J179: 0
E180: 179 | J180: 0
E181: 180 | J181: 0
E182: 181 | J182: 0
E183: 182 | J183: 0
E184: 183 | J184: 0
E185: 184 | J185: 0
E186: 185 | J186: 0
E187: 186 | J187: 0
E188: 187 | J188: 0
E189: 188 | J189: 0
E190: 189 | J190: 0
E191: 190 | J191: 0
E192: 191 | J192: 0
E193: 192 | J193: 0
E194: 193 | J194: 0
E195: 194 | J195: 0
E196: 195 | J196: 0
E197: 196 | J197: 0
E198: 197 | J198: 0
E199: 198 | J199: 0
E200: 199 | J200: 0
... 101 more rows

Sheet Highstakes
A1: Futurity | B1: Der | C1: Age Inct. | D1: BBR | E1: Draw | F1: Rider Name | G1: Horse Name | H1: c/o | I1: Time | J1: Final Time | K1: Placing | L1: Money Earned
E2: 1 | F2: Lisa Nicholas | G2: Stoli My Guy | I2: 15.773 | K2: 1st | L2: 320
E3: 2 | F3: Sonyia Raborn | G3: Ima Sharp French Guy | I3: 16.206
E4: 3 | F4: Laura Avery | G4: Letta Trouble Doit | I4: 16.209
E5: 4 | F5: Trina Murray | G5: Fuel For Dash | I5: nt16.451
E6: 5
E7: 6
E8: 7
E9: 8
E10: 9
E11: 10
E12: 11
E13: 12
E14: 13
E15: 14
E16: 15
E17: 16
E18: 17
E19: 18
E20: 19
E21: 20
E22: 21
E23: 22
E24: 23
E25: 24
E26: 25
E27: 26
E28: 27
E29: 28
E30: 29
E31: 30
E32: 31
E33: 32
E34: 33
E35: 34
E36: 35
E37: 36
E38: 37
E39: 38
E40: 39 | J40: =IF(OR(H40=5,H40=10, H40=15, H40="BP",H40="SCR"),"NT",I40) -> 0
E41: 40 | J41: 0
E42: 41 | J42: 0
E43: 42 | J43: 0
E44: 43 | J44: 0
E45: 44 | J45: 0
E46: 45 | J46: 0
E47: 46 | J47: 0
E48: 47 | J48: 0
E49: 48 | J49: 0
E50: 49 | J50: 0
E51: 50 | J51: 0
E52: 51 | J52: 0
E53: 52 | J53: 0
E54: 53 | J54: 0
E55: 54 | J55: 0
E56: 55 | J56: 0
E57: 56 | J57: 0
E58: 57 | J58: 0
E59: 58 | J59: 0
E60: 59 | J60: 0
E61: 60 | J61: 0
E62: 61 | J62: 0
E63: 62 | J63: 0
E64: 63 | J64: 0
E65: 64 | J65: 0
E66: 65 | J66: 0
E67: 66 | J67: 0
E68: 67 | J68: 0
E69: 68 | J69: 0
E70: 69 | J70: 0
E71: 70 | J71: 0
E72: 71 | J72: 0
E73: 72 | J73: 0
E74: 73 | J74: 0
E75: 74 | J75: 0
E76: 75 | J76: 0
E77: 76 | J77: 0
E78: 77 | J78: 0
E79: 78 | J79: 0
E80: 79 | J80: 0
E81: 80 | J81: 0
E82: 81 | J82: 0
E83: 82 | J83: 0
E84: 83 | J84: 0
E85: 84 | J85: 0
E86: 85 | J86: 0
E87: 86 | J87: 0
E88: 87 | J88: 0
E89: 88 | J89: 0
E90: 89 | J90: 0
E91: 90 | J91: 0
E92: 91 | J92: 0
E93: 92 | J93: 0
E94: 93 | J94: 0
E95: 94 | J95: 0
E96: 95 | J96: 0
E97: 96 | J97: 0
E98: 97 | J98: 0
E99: 98 | J99: 0
E100: 99 | J100: 0
E101: 100 | J101: 0
E102: 101 | J102: 0
E103: 102 | J103: 0
E104: 103 | J104: =IF(OR(H104=5,H104=10, H104=15, H104="BP",H104="SCR"),"NT",I104) -> 0
E105: 104 | J105: 0
E106: 105 | J106: 0
E107: 106 | J107: 0
E108: 107 | J108: 0
E109: 108 | J109: 0
E110: 109 | J110: 0
E111: 110 | J111: 0
E112: 111 | J112: 0
E113: 112 | J113: 0
E114: 113 | J114: 0
E115: 114 | J115: 0
E116: 115 | J116: 0
E117: 116 | J117: 0
E118: 117 | J118: 0
E119: 118 | J119: 0
E120: 119 | J120: 0
E121: 120 | J121: 0
E122: 121 | J122: 0
E123: 122 | J123: 0
E124: 123 | J124: 0
E125: 124 | J125: 0
E126: 125 | J126: 0
E127: 126 | J127: 0
E128: 127 | J128: 0
E129: 128 | J129: 0
E130: 129 | J130: 0
E131: 130 | J131: 0
E132: 131 | J132: 0
E133: 132 | J133: 0
E134: 133 | J134: 0
E135: 134 | J135: 0
E136: 135 | J136: 0
E137: 136 | J137: 0
E138: 137 | J138: 0
E139: 138 | J139: 0
E140: 139 | J140: 0
E141: 140 | J141: 0
E142: 141 | J142: 0
E143: 142 | J143: 0
E144: 143 | J144: 0
E145: 144 | J145: 0
E146: 145 | J146: 0
E147: 146 | J147: 0
E148: 147 | J148: 0
E149: 148 | J149: 0
E150: 149 | J150: 0
E151: 150 | J151: 0
E152: 151 | J152: 0
E153: 152 | J153: 0
E154: 153 | J154: 0
E155: 154 | J155: 0
E156: 155 | J156: 0
E157: 156 | J157: 0
E158: 157 | J158: 0
E159: 158 | J159: 0
E160: 159 | J160: 0
E161: 160 | J161: 0
E162: 161 | J162: 0
E163: 162 | J163: 0
E164: 163 | J164: 0
E165: 164 | J165: 0
E166: 165 | J166: 0
E167: 166 | J167: 0
E168: 167 | J168: =IF(OR(H168=5,H168=10, H168=15, H168="BP",H168="SCR"),"NT",I168) -> 0
E169: 168 | J169: 0
E170: 169 | J170: 0
E171: 170 | J171: 0
E172: 171 | J172: 0
E173: 172 | J173: 0
E174: 173 | J174: 0
E175: 174 | J175: 0
E176: 175 | J176: 0
E177: 176 | J177: 0
E178: 177 | J178: 0
E179: 178 | J179: 0
E180: 179 | J180: 0
E181: 180 | J181: 0
E182: 181 | J182: 0
E183: 182 | J183: 0
E184: 183 | J184: 0
E185: 184 | J185: 0
E186: 185 | J186: 0
E187: 186 | J187: 0
E188: 187 | J188: 0
E189: 188 | J189: 0
E190: 189 | J190: 0
E191: 190 | J191: 0
E192: 191 | J192: 0
E193: 192 | J193: 0
E194: 193 | J194: 0
E195: 194 | J195: 0
E196: 195 | J196: 0
E197: 196 | J197: 0
E198: 197 | J198: 0
E199: 198 | J199: 0
E200: 199 | J200: 0
... 101 more rows

Sheet Futurity
A1: Futurity | B1: Der | C1: Age Inct. | D1: BBR | E1: Draw | F1: Rider Name | G1: Horse Name | H1: c/o | I1: Time | J1: Final Time | K1: Placing | L1: Money Earned
E2: 1 | F2: Jessie Domann | G2: IRoseSuchaStinson | I2: 15.917 | K2: 1D 1st | L2: 143
E3: 2 | F3: Shelly Shields | G3: Streakers Queen | I3: 15.938 | K3: 1D 2nd | L3: 95
E4: 3 | F4: Jordon Briggs | G4: Famous Lil Jet | I4: 15.947
E5: 4 | F5: Nisa Berry | G5: Code Name Fame | I5: 16.337
E6: 5 | F6: Jordon Briggs | G6: One First Class Lady | I6: 16.346
E7: 6 | F7: Brooke Kelley | G7: Nu Bueno Karma | I7: 16.647 | K7: 2D 1st | L7: 61
E8: 7 | F8: Kelly Valdez | G8: Wicked French Chick | I8: 16.657 | K8: 2D 2nd | L8: 41
E9: 8 | F9: Jessica Morris | G9: Wonder If Im Phamous | I9: 16.667
E10: 9 | F10: Hilary Hightower | G10: This Blondes Not Dun | I10: 16.722
E11: 10 | F11: Jenna Napier | G11: Frenchmans Dually | I11: 16.982
E12: 11 | F12: Ken English | G12: Smart Cats Fame | I12: 17.017
E13: 12 | F13: Donna Tippen | G13: Epic Nick | I13: 17.287
E14: 13 | F14: Ken English | G14: Happy And I Know It | I14: 17.579
E15: 14 | F15: Kassie Rieken | G15: RR Lil Red Wagon | I15: 18.291
E16: 15 | F16: Candie Miner | G16: Laney | I16: nt
E17: 16 | F17: Jessie Domann | G17: Ima Perry N Famous | I17: nt
E18: 17 | F18: Nicole Riggle | G18: Moonshinesgotmefiren | I18: nt17.613
E19: 18
E20: 19
E21: 20
E22: 21
E23: 22
E24: 23
E25: 24
E26: 25
E27: 26
E28: 27
E29: 28
E30: 29
E31: 30
E32: 31
E33: 32
E34: 33
E35: 34
E36: 35
E37: 36
E38: 37
E39: 38
E40: 39
E41: 40
E42: 41
E43: 42
E44: 43
E45: 44
E46: 45
E47: 46
E48: 47
E49: 48
E50: 49
E51: 50
E52: 51
E53: 52
E54: 53
E55: 54
E56: 55
E57: 56
E58: 57
E59: 58
E60: 59
E61: 60
E62: 61
E63: 62
E64: 63
E65: 64
E66: 65
E67: 66
E68: 67
E69: 68
E70: 69
E71: 70
E72: 71
E73: 72
E74: 73
E75: 74
E76: 75
E77: 76 | J77: =IF(OR(H77=5,H77=10, H77=15, H77="BP",H77="SCR"),"NT",I77) -> 0
E78: 77 | J78: 0
E79: 78 | J79: 0
E80: 79 | J80: 0
E81: 80 | J81: 0
E82: 81 | J82: 0
E83: 82 | J83: 0
E84: 83 | J84: 0
E85: 84 | J85: 0
E86: 85 | J86: 0
E87: 86 | J87: 0
E88: 87 | J88: 0
E89: 88 | J89: 0
E90: 89 | J90: 0
E91: 90 | J91: 0
E92: 91 | J92: 0
E93: 92 | J93: 0
E94: 93 | J94: 0
E95: 94 | J95: 0
E96: 95 | J96: =IF(OR(H96=5,H96=10, H96=15, H96="BP",H96="SCR"),"NT",I96) -> 0
E97: 96 | J97: 0
E98: 97 | J98: 0
E99: 98 | J99: 0
E100: 99 | J100: 0
E101: 100 | J101: 0
E102: 101 | J102: 0
E103: 102 | J103: 0
E104: 103 | J104: 0
E105: 104 | J105: 0
E106: 105 | J106: 0
E107: 106 | J107: 0
E108: 107 | J108: 0
E109: 108 | J109: 0
E110: 109 | J110: 0
E111: 110 | J111: 0
E112: 111 | J112: 0
E113: 112 | J113: 0
E114: 113 | J114: 0
E115: 114 | J115: 0
E116: 115 | J116: 0
E117: 116 | J117: 0
E118: 117 | J118: 0
E119: 118 | J119: 0
E120: 119 | J120: 0
E121: 120 | J121: 0
E122: 121 | J122: 0
E123: 122 | J123: 0
E124: 123 | J124: 0
E125: 124 | J125: 0
E126: 125 | J126: 0
E127: 126 | J127: 0
E128: 127 | J128: 0
E129: 128 | J129: 0
E130: 129 | J130: 0
E131: 130 | J131: 0
E132: 131 | J132: 0
E133: 132 | J133: 0
E134: 133 | J134: 0
E135: 134 | J135: 0
E136: 135 | J136: 0
E137: 136 | J137: 0
E138: 137 | J138: 0
E139: 138 | J139: 0
E140: 139 | J140: 0
E141: 140 | J141: 0
E142: 141 | J142: 0
E143: 142 | J143: 0
E144: 143 | J144: 0
E145: 144 | J145: 0
E146: 145 | J146: 0
E147: 146 | J147: 0
E148: 147 | J148: 0
E149: 148 | J149: 0
E150: 149 | J150: 0
E151: 150 | J151: 0
E152: 151 | J152: 0
E153: 152 | J153: 0
E154: 153 | J154: 0
E155: 154 | J155: 0
E156: 155 | J156: 0
E157: 156 | J157: 0
E158: 157 | J158: 0
E159: 158 | J159: 0
E160: 159 | J160: =IF(OR(H160=5,H160=10, H160=15, H160="BP",H160="SCR"),"NT",I160) -> 0
E161: 160 | J161: 0
E162: 161 | J162: 0
E163: 162 | J163: 0
E164: 163 | J164: 0
E165: 164 | J165: 0
E166: 165 | J166: 0
E167: 166 | J167: 0
E168: 167 | J168: 0
E169: 168 | J169: 0
E170: 169 | J170: 0
E171: 170 | J171: 0
E172: 171 | J172: 0
E173: 172 | J173: 0
E174: 173 | J174: 0
E175: 174 | J175: 0
E176: 175 | J176: 0
E177: 176 | J177: 0
E178: 177 | J178: 0
E179: 178 | J179: 0
E180: 179 | J180: 0
E181: 180 | J181: 0
E182: 181 | J182: 0
E183: 182 | J183: 0
E184: 183 | J184: 0
E185: 184 | J185: 0
E186: 185 | J186: 0
E187: 186 | J187: 0
E188: 187 | J188: 0
E189: 188 | J189: 0
E190: 189 | J190: 0
E191: 190 | J191: 0
E192: 191 | J192: 0
E193: 192 | J193: 0
E194: 193 | J194: 0
E195: 194 | J195: 0
E196: 195 | J196: 0
E197: 196 | J197: 0
E198: 197 | J198: 0
E199: 198 | J199: 0
E200: 199 | J200: 0
... 101 more rows

Sheet 12 & Under (hidden)
A1: Futurity | B1: Der | C1: Age Inct. | D1: R/O | E1: Draw | F1: Rider Name | G1: Horse Name | H1: Time | I1: Final Time | J1: Placing | K1: Money Earned
E33: 32
E34: 33
E35: 34
E36: 35
E37: 36
E38: 37
E39: 38
E40: 39
E41: 40
E42: 41
E43: 42
E44: 43
E45: 44
E46: 45
E47: 46
E48: 47
E49: 48
E50: 49
E51: 50
E52: 51
E53: 52
E54: 53
E55: 54
E56: 55
E57: 56
E58: 57
E59: 58
E60: 59
E61: 60
E62: 61
E63: 62
E64: 63
E65: 64
E66: 65
E67: 66
E68: 67
E69: 68
E70: 69
E71: 70
E72: 71
E73: 72
E74: 73
E75: 74
E76: 75
E77: 76
E78: 77
E79: 78
E80: 79
E81: 80
E82: 81
E83: 82
E84: 83
E85: 84
E86: 85
E87: 86
E88: 87
E89: 88
E90: 89
E91: 90
E92: 91
E93: 92
E94: 93
E95: 94
E96: 95
E97: 96
E98: 97
E99: 98
E100: 99
E101: 100
E102: 101
E103: 102
E104: 103
E105: 104
E106: 105
E107: 106
E108: 107
E109: 108
E110: 109
E111: 110
E112: 111
E113: 112
E114: 113
E115: 114
E116: 115
E117: 116
E118: 117
E119: 118
E120: 119
E121: 120
E122: 121
E123: 122
E124: 123
E125: 124
E126: 125
E127: 126
E128: 127
E129: 128
E130: 129
E131: 130
E132: 131
E133: 132
E134: 133
E135: 134
E136: 135
E137: 136
E138: 137
E139: 138
E140: 139
E141: 140
E142: 141
E143: 142
E144: 143
E145: 144
E146: 145
E147: 146
E148: 147
E149: 148
E150: 149
E151: 150
E152: 151
E153: 152
E154: 153
E155: 154
E156: 155
E157: 156
E158: 157
E159: 158
E160: 159
E161: 160
E162: 161
E163: 162
E164: 163
E165: 164
E166: 165
E167: 166
E168: 167
E169: 168
E170: 169
E171: 170
E172: 171
E173: 172
E174: 173
E175: 174
E176: 175
E177: 176
E178: 177
E179: 178
E180: 179
E181: 180
E182: 181
E183: 182
E184: 183
E185: 184
E186: 185
E187: 186
E188: 187
E189: 188
E190: 189
E191: 190
E192: 191
E193: 192
E194: 193
E195: 194
E196: 195
E197: 196
E198: 197
E199: 198
E200: 199
E201: 200
E202: 201
E203: 202
E204: 203
E205: 204
E206: 205
E207: 206
E208: 207
E209: 208
E210: 209
E211: 210
E212: 211
E213: 212
E214: 213
E215: 214
E216: 215
E217: 216
E218: 217
E219: 218
E220: 219
E221: 220
E222: 221
E223: 222
E224: 223
E225: 224
E226: 225
E227: 226
E228: 227
E229: 228
E230: 229
E231: 230
... 70 more rows

Sheet 8&under
A1: Draw | B1: Rider Name | C1: Horse Name | D1: Pen | E1: Time | F1: Final Time | G1: Placing | H1: Money Earned
A2: 2 | B2: Brayley Cooper | C2: Sassy | E2: 17.682 | G2: 1st
A3: 8 | B3: Raylee Cook | C3: Frost | E3: 19.232 | G3: 2nd
A4: 7 | B4: Talan Lindenfeld | C4: Classy | E4: 20.008 | G4: 3rd
A5: 4 | B5: Ava SMIth | C5: Dude | E5: 20.857 | G5: 4th
A6: 3 | B6: Chloe Lindenfield | E6: 22.259
A7: 9 | B7: Jaidyn Ornelas | C7: Hercules | E7: 35.031
A8: 5 | B8: Jaidyn Ornelas | C8: Duke | E8: 40.055
A9: 1 | B9: Kimber Steffen | C9: Dolly Jo | E9: 53.175
A10: 10 | B10: Lilly Smith | C10: Shiner | E10: 54.255
A11: 6 | B11: Kaley Steffen | C11: Charming | E11: 57.473
A12: 9
A13: 10 | F13: =IF(OR(D13=5,D13=10, D13=15, D13="BP",D13="SCR"),"NT",E13) -> 0
A14: 11 | F14: =IF(OR(D14=5,D14=10, D14=15, D14="BP",D14="SCR"),"NT",E14) -> 0
A15: 12 | F15: =IF(OR(D15=5,D15=10, D15=15, D15="BP",D15="SCR"),"NT",E15) -> 0
A16: 13 | F16: =IF(OR(D16=5,D16=10, D16=15, D16="BP",D16="SCR"),"NT",E16) -> 0
A17: 14 | F17: =IF(OR(D17=5,D17=10, D17=15, D17="BP",D17="SCR"),"NT",E17) -> 0
A18: 15 | F18: =IF(OR(D18=5,D18=10, D18=15, D18="BP",D18="SCR"),"NT",E18) -> 0
A19: 16 | F19: =IF(OR(D19=5,D19=10, D19=15, D19="BP",D19="SCR"),"NT",E19) -> 0
A20: 17 | F20: =IF(OR(D20=5,D20=10, D20=15, D20="BP",D20="SCR"),"NT",E20) -> 0
A21: 18 | F21: =IF(OR(D21=5,D21=10, D21=15, D21="BP",D21="SCR"),"NT",E21) -> 0
A22: 19 | F22: =IF(OR(D22=5,D22=10, D22=15, D22="BP",D22="SCR"),"NT",E22) -> 0
A23: 20 | F23: =IF(OR(D23=5,D23=10, D23=15, D23="BP",D23="SCR"),"NT",E23) -> 0

Sheet Average
A1: Parker County Arena
A2: Open
A3: 4 Yr Fut | B3: 5 Yr Fut | C3: Der | D3: Age Inct. | E3: Am | F3: Carry | G3: T/C | H3: F/F | I3: Mem | J3: Nom | K3: Av | L3: BBR | M3: WPRA | N3: Draw | O3: Owner Name | P3: Rider Name | Q3: Horse Name | R3: Pen | S3: Time 1 | T3: Final Time 1 | U3: Pen | V3: Time 2 | W3: Final Time 2 | X3: Total Time | Y3: Average Time | Z3: Placing | AA3: Money Earned | AC3: D Placing | AE3: Split
N4: 1 | T4: =IF(OR(R4=5,R4=10, R4=15, R4="BP",R4="SCR"),"NT",S4) -> 0 | W4: =IF(OR(U4=5,U4=10, U4=15, U4="BP",U4="SCR"),"NT",V4) -> 0 | X4: =(T4+W4) -> 0 | Y4: =(T4+W4)/2 -> 0 | AC4: 1D
N5: 2 | T5: 0 | W5: 0 | X5: 0 | Y5: 0 | AC5: 2D | AD5: =$AD$4+$AE$5 -> 0.5 | AE5: 0.5
N6: 3 | T6: 0 | W6: 0 | X6: 0 | Y6: 0 | AC6: 3D | AD6: =$AD$5+$AE$6 -> 1 | AE6: 0.5
N7: 4 | T7: 0 | W7: 0 | X7: 0 | Y7: 0 | AC7: 4D | AD7: =$AD$6+$AE$7 -> 1.5 | AE7: 0.5
N8: 5 | T8: 0 | W8: 0 | X8: 0 | Y8: 0 | AC8: 5D | AD8: =$AD$7+$AE$8 -> 2 | AE8: 0.5
N9: 6 | T9: 0 | W9: 0 | X9: 0 | Y9: 0
N10: 7 | T10: 0 | W10: 0 | X10: 0 | Y10: 0 | AC10: # Entered
N11: 8 | T11: 0 | W11: 0 | X11: 0 | Y11: 0 | AC11: =COUNTA(P4:P503) -> 0
N12: 9 | T12: 0 | W12: 0 | X12: 0 | Y12: 0
N13: 10 | T13: 0 | W13: 0 | X13: 0 | Y13: 0
N14: 11 | T14: 0 | W14: 0 | X14: 0 | Y14: 0
N15: 12 | T15: 0 | W15: 0 | X15: 0 | Y15: 0
N16: 13 | T16: 0 | W16: 0 | X16: 0 | Y16: 0
N17: 14 | T17: =IF(OR(R17=5,R17=10, R17=15, R17="BP",R17="SCR"),"NT",S17) -> 0 | W17: =IF(OR(U17=5,U17=10, U17=15, U17="BP",U17="SCR"),"NT",V17) -> 0 | X17: =(T17+W17) -> 0 | Y17: =(T17+W17)/2 -> 0
N18: 15 | T18: 0 | W18: 0 | X18: 0 | Y18: 0
N19: 16 | T19: 0 | W19: 0 | X19: 0 | Y19: 0
N20: 17 | T20: 0 | W20: 0 | X20: 0 | Y20: 0
N21: 18 | T21: 0 | W21: 0 | X21: 0 | Y21: 0
N22: 19 | T22: 0 | W22: 0 | X22: 0 | Y22: 0
N23: 20 | T23: 0 | W23: 0 | X23: 0 | Y23: 0
N24: 21 | T24: 0 | W24: 0 | X24: 0 | Y24: 0
N25: 22 | T25: 0 | W25: 0 | X25: 0 | Y25: 0
N26: 23 | T26: 0 | W26: 0 | X26: 0 | Y26: 0
N27: 24 | T27: 0 | W27: 0 | X27: 0 | Y27: 0
N28: 25 | T28: 0 | W28: 0 | X28: 0 | Y28: 0
N29: 26 | T29: 0 | W29: 0 | X29: 0 | Y29: 0
N30: 27 | T30: 0 | W30: 0 | X30: 0 | Y30: 0
N31: 28 | T31: 0 | W31: 0 | X31: 0 | Y31: 0
N32: 29 | T32: 0 | W32: 0 | X32: 0 | Y32: 0
N33: 30 | T33: 0 | W33: 0 | X33: 0 | Y33: 0
N34: 31 | T34: 0 | W34: 0 | X34: 0 | Y34: 0
N35: 32 | T35: 0 | W35: 0 | X35: 0 | Y35: 0
N36: 33 | T36: 0 | W36: 0 | X36: 0 | Y36: 0
N37: 34 | T37: 0 | W37: 0 | X37: 0 | Y37: 0
N38: 35 | T38: 0 | W38: 0 | X38: 0 | Y38: 0
N39: 36 | T39: 0 | W39: 0 | X39: 0 | Y39: 0
N40: 37 | T40: 0 | W40: 0 | X40: 0 | Y40: 0
N41: 38 | T41: 0 | W41: 0 | X41: 0 | Y41: 0
N42: 39 | T42: 0 | W42: 0 | X42: 0 | Y42: 0
N43: 40 | T43: 0 | W43: 0 | X43: 0 | Y43: 0
N44: 41 | T44: 0 | W44: 0 | X44: 0 | Y44: 0
N45: 42 | T45: 0 | W45: 0 | X45: 0 | Y45: 0
N46: 43 | T46: 0 | W46: 0 | X46: 0 | Y46: 0
N47: 44 | T47: 0 | W47: 0 | X47: 0 | Y47: 0
N48: 45 | T48: 0 | W48: 0 | X48: 0 | Y48: 0
N49: 46 | T49: 0 | W49: 0 | X49: 0 | Y49: 0
N50: 47 | T50: 0 | W50: 0 | X50: 0 | Y50: 0
N51: 48 | T51: 0 | W51: 0 | X51: 0 | Y51: 0
N52: 49 | T52: 0 | W52: 0 | X52: 0 | Y52: 0
N53: 50 | T53: 0 | W53: 0 | X53: 0 | Y53: 0
N54: 51 | T54: 0 | W54: 0 | X54: 0 | Y54: 0
N55: 52 | T55: 0 | W55: 0 | X55: 0 | Y55: 0
N56: 53 | T56: 0 | W56: 0 | X56: 0 | Y56: 0
N57: 54 | T57: 0 | W57: 0 | X57: 0 | Y57: 0
N58: 55 | T58: 0 | W58: 0 | X58: 0 | Y58: 0
N59: 56 | T59: 0 | W59: 0 | X59: 0 | Y59: 0
N60: 57 | T60: 0 | W60: 0 | X60: 0 | Y60: 0
N61: 58 | T61: 0 | W61: 0 | X61: 0 | Y61: 0
N62: 59 | T62: 0 | W62: 0 | X62: 0 | Y62: 0
N63: 60 | T63: 0 | W63: 0 | X63: 0 | Y63: 0
N64: 61 | T64: 0 | W64: 0 | X64: 0 | Y64: 0
N65: 62 | T65: 0 | W65: 0 | X65: 0 | Y65: 0
N66: 63 | T66: 0 | W66: 0 | X66: 0 | Y66: 0
N67: 64 | T67: 0 | W67: 0 | X67: 0 | Y67: 0
N68: 65 | T68: 0 | W68: 0 | X68: 0 | Y68: 0
N69: 66 | T69: =IF(OR(R69=5,R69=10, R69=15, R69="BP",R69="SCR"),"NT",S69) -> 0 | W69: =IF(OR(U69=5,U69=10, U69=15, U69="BP",U69="SCR"),"NT",V69) -> 0 | X69: =(T69+W69) -> 0 | Y69: =(T69+W69)/2 -> 0
N70: 67 | T70: 0 | W70: 0 | X70: 0 | Y70: 0
N71: 68 | T71: 0 | W71: 0 | X71: 0 | Y71: 0
N72: 69 | T72: 0 | W72: 0 | X72: 0 | Y72: 0
N73: 70 | T73: 0 | W73: 0 | X73: 0 | Y73: 0
N74: 71 | T74: 0 | W74: 0 | X74: 0 | Y74: 0
N75: 72 | T75: 0 | W75: 0 | X75: 0 | Y75: 0
N76: 73 | T76: 0 | W76: 0 | X76: 0 | Y76: 0
N77: 74 | T77: 0 | W77: 0 | X77: 0 | Y77: 0
N78: 75 | T78: 0 | W78: 0 | X78: 0 | Y78: 0
N79: 76 | T79: 0 | W79: 0 | X79: 0 | Y79: 0
N80: 77 | T80: 0 | W80: 0 | X80: 0 | Y80: 0
N81: 78 | T81: 0 | W81: 0 | X81: 0 | Y81: 0
N82: 79 | T82: 0 | W82: 0 | X82: 0 | Y82: 0
N83: 80 | T83: 0 | W83: 0 | X83: 0 | Y83: 0
N84: 81 | T84: 0 | W84: 0 | X84: 0 | Y84: 0
N85: 82 | T85: 0 | W85: 0 | X85: 0 | Y85: 0
N86: 83 | T86: 0 | W86: 0 | X86: 0 | Y86: 0
N87: 84 | T87: 0 | W87: 0 | X87: 0 | Y87: 0
N88: 85 | T88: 0 | W88: 0 | X88: 0 | Y88: 0
N89: 86 | T89: 0 | W89: 0 | X89: 0 | Y89: 0
N90: 87 | T90: 0 | W90: 0 | X90: 0 | Y90: 0
N91: 88 | T91: 0 | W91: 0 | X91: 0 | Y91: 0
N92: 89 | T92: 0 | W92: 0 | X92: 0 | Y92: 0
N93: 90 | T93: 0 | W93: 0 | X93: 0 | Y93: 0
N94: 91 | T94: 0 | W94: 0 | X94: 0 | Y94: 0
N95: 92 | T95: 0 | W95: 0 | X95: 0 | Y95: 0
N96: 93 | T96: 0 | W96: 0 | X96: 0 | Y96: 0
N97: 94 | T97: 0 | W97: 0 | X97: 0 | Y97: 0
N98: 95 | T98: 0 | W98: 0 | X98: 0 | Y98: 0
N99: 96 | T99: 0 | W99: 0 | X99: 0 | Y99: 0
N100: 97 | T100: 0 | W100: 0 | X100: 0 | Y100: 0
N101: 98 | T101: 0 | W101: 0 | X101: 0 | Y101: 0
N102: 99 | T102: 0 | W102: 0 | X102: 0 | Y102: 0
N103: 100 | T103: 0 | W103: 0 | X103: 0 | Y103: 0
N104: 101 | T104: 0 | W104: 0 | X104: 0 | Y104: 0
N105: 102 | T105: 0 | W105: 0 | X105: 0 | Y105: 0
N106: 103 | T106: 0 | W106: 0 | X106: 0 | Y106: 0
N107: 104 | T107: 0 | W107: 0 | X107: 0 | Y107: 0
N108: 105 | T108: 0 | W108: 0 | X108: 0 | Y108: 0
N109: 106 | T109: 0 | W109: 0 | X109: 0 | Y109: 0
N110: 107 | T110: 0 | W110: 0 | X110: 0 | Y110: 0
N111: 108 | T111: 0 | W111: 0 | X111: 0 | Y111: 0
N112: 109 | T112: 0 | W112: 0 | X112: 0 | Y112: 0
N113: 110 | T113: 0 | W113: 0 | X113: 0 | Y113: 0
N114: 111 | T114: 0 | W114: 0 | X114: 0 | Y114: 0
N115: 112 | T115: 0 | W115: 0 | X115: 0 | Y115: 0
N116: 113 | T116: 0 | W116: 0 | X116: 0 | Y116: 0
N117: 114 | T117: 0 | W117: 0 | X117: 0 | Y117: 0
N118: 115 | T118: 0 | W118: 0 | X118: 0 | Y118: 0
N119: 116 | T119: 0 | W119: 0 | X119: 0 | Y119: 0
N120: 117 | T120: 0 | W120: 0 | X120: 0 | Y120: 0
N121: 118 | T121: 0 | W121: 0 | X121: 0 | Y121: 0
N122: 119 | T122: 0 | W122: 0 | X122: 0 | Y122: 0
N123: 120 | T123: 0 | W123: 0 | X123: 0 | Y123: 0
N124: 121 | T124: 0 | W124: 0 | X124: 0 | Y124: 0
N125: 122 | T125: 0 | W125: 0 | X125: 0 | Y125: 0
N126: 123 | T126: 0 | W126: 0 | X126: 0 | Y126: 0
N127: 124 | T127: 0 | W127: 0 | X127: 0 | Y127: 0
N128: 125 | T128: 0 | W128: 0 | X128: 0 | Y128: 0
N129: 126 | T129: 0 | W129: 0 | X129: 0 | Y129: 0
N130: 127 | T130: 0 | W130: 0 | X130: 0 | Y130: 0
N131: 128 | T131: 0 | W131: 0 | X131: 0 | Y131: 0
N132: 129 | T132: 0 | W132: 0 | X132: 0 | Y132: 0
N133: 130 | T133: =IF(OR(R133=5,R133=10, R133=15, R133="BP",R133="SCR"),"NT",S133) -> 0 | W133: =IF(OR(U133=5,U133=10, U133=15, U133="BP",U133="SCR"),"NT",V133) -> 0 | X133: =(T133+W133) -> 0 | Y133: =(T133+W133)/2 -> 0
N134: 131 | T134: 0 | W134: 0 | X134: 0 | Y134: 0
N135: 132 | T135: 0 | W135: 0 | X135: 0 | Y135: 0
N136: 133 | T136: 0 | W136: 0 | X136: 0 | Y136: 0
N137: 134 | T137: 0 | W137: 0 | X137: 0 | Y137: 0
N138: 135 | T138: 0 | W138: 0 | X138: 0 | Y138: 0
N139: 136 | T139: 0 | W139: 0 | X139: 0 | Y139: 0
N140: 137 | T140: 0 | W140: 0 | X140: 0 | Y140: 0
N141: 138 | T141: 0 | W141: 0 | X141: 0 | Y141: 0
N142: 139 | T142: 0 | W142: 0 | X142: 0 | Y142: 0
N143: 140 | T143: 0 | W143: 0 | X143: 0 | Y143: 0
N144: 141 | T144: 0 | W144: 0 | X144: 0 | Y144: 0
N145: 142 | T145: 0 | W145: 0 | X145: 0 | Y145: 0
N146: 143 | T146: 0 | W146: 0 | X146: 0 | Y146: 0
N147: 144 | T147: 0 | W147: 0 | X147: 0 | Y147: 0
N148: 145 | T148: 0 | W148: 0 | X148: 0 | Y148: 0
N149: 146 | T149: 0 | W149: 0 | X149: 0 | Y149: 0
N150: 147 | T150: 0 | W150: 0 | X150: 0 | Y150: 0
N151: 148 | T151: 0 | W151: 0 | X151: 0 | Y151: 0
N152: 149 | T152: 0 | W152: 0 | X152: 0 | Y152: 0
N153: 150 | T153: 0 | W153: 0 | X153: 0 | Y153: 0
N154: 151 | T154: 0 | W154: 0 | X154: 0 | Y154: 0
N155: 152 | T155: 0 | W155: 0 | X155: 0 | Y155: 0
N156: 153 | T156: 0 | W156: 0 | X156: 0 | Y156: 0
N157: 154 | T157: 0 | W157: 0 | X157: 0 | Y157: 0
N158: 155 | T158: 0 | W158: 0 | X158: 0 | Y158: 0
N159: 156 | T159: 0 | W159: 0 | X159: 0 | Y159: 0
N160: 157 | T160: 0 | W160: 0 | X160: 0 | Y160: 0
N161: 158 | T161: 0 | W161: 0 | X161: 0 | Y161: 0
N162: 159 | T162: 0 | W162: 0 | X162: 0 | Y162: 0
N163: 160 | T163: 0 | W163: 0 | X163: 0 | Y163: 0
N164: 161 | T164: 0 | W164: 0 | X164: 0 | Y164: 0
N165: 162 | T165: 0 | W165: 0 | X165: 0 | Y165: 0
N166: 163 | T166: 0 | W166: 0 | X166: 0 | Y166: 0
N167: 164 | T167: 0 | W167: 0 | X167: 0 | Y167: 0
N168: 165 | T168: 0 | W168: 0 | X168: 0 | Y168: 0
N169: 166 | T169: 0 | W169: 0 | X169: 0 | Y169: 0
N170: 167 | T170: 0 | W170: 0 | X170: 0 | Y170: 0
N171: 168 | T171: 0 | W171: 0 | X171: 0 | Y171: 0
N172: 169 | T172: 0 | W172: 0 | X172: 0 | Y172: 0
N173: 170 | T173: 0 | W173: 0 | X173: 0 | Y173: 0
N174: 171 | T174: 0 | W174: 0 | X174: 0 | Y174: 0
N175: 172 | T175: 0 | W175: 0 | X175: 0 | Y175: 0
N176: 173 | T176: 0 | W176: 0 | X176: 0 | Y176: 0
N177: 174 | T177: 0 | W177: 0 | X177: 0 | Y177: 0
N178: 175 | T178: 0 | W178: 0 | X178: 0 | Y178: 0
N179: 176 | T179: 0 | W179: 0 | X179: 0 | Y179: 0
N180: 177 | T180: 0 | W180: 0 | X180: 0 | Y180: 0
N181: 178 | T181: 0 | W181: 0 | X181: 0 | Y181: 0
N182: 179 | T182: 0 | W182: 0 | X182: 0 | Y182: 0
N183: 180 | T183: 0 | W183: 0 | X183: 0 | Y183: 0
N184: 181 | T184: 0 | W184: 0 | X184: 0 | Y184: 0
N185: 182 | T185: 0 | W185: 0 | X185: 0 | Y185: 0
N186: 183 | T186: 0 | W186: 0 | X186: 0 | Y186: 0
N187: 184 | T187: 0 | W187: 0 | X187: 0 | Y187: 0
N188: 185 | T188: 0 | W188: 0 | X188: 0 | Y188: 0
N189: 186 | T189: 0 | W189: 0 | X189: 0 | Y189: 0
N190: 187 | T190: 0 | W190: 0 | X190: 0 | Y190: 0
N191: 188 | T191: 0 | W191: 0 | X191: 0 | Y191: 0
N192: 189 | T192: 0 | W192: 0 | X192: 0 | Y192: 0
N193: 190 | T193: 0 | W193: 0 | X193: 0 | Y193: 0
N194: 191 | T194: 0 | W194: 0 | X194: 0 | Y194: 0
N195: 192 | T195: 0 | W195: 0 | X195: 0 | Y195: 0
N196: 193 | T196: 0 | W196: 0 | X196: 0 | Y196: 0
N197: 194 | T197: =IF(OR(R197=5,R197=10, R197=15, R197="BP",R197="SCR"),"NT",S197) -> 0 | W197: =IF(OR(U197=5,U197=10, U197=15, U197="BP",U197="SCR"),"NT",V197) -> 0 | X197: =(T197+W197) -> 0 | Y197: =(T197+W197)/2 -> 0
N198: 195 | T198: 0 | W198: 0 | X198: 0 | Y198: 0
N199: 196 | T199: 0 | W199: 0 | X199: 0 | Y199: 0
N200: 197 | T200: 0 | W200: 0 | X200: 0 | Y200: 0
... 303 more rows

Sheet BFA 2D Payout (hidden)
A1: BFA 2D Payout
A2: Entry Fee | B2: # Entries | C2: % Payback | D2: Added $ | E2: Total Payout | F2: Each Go
A3: 25 | B3: 19 | C3: 0.8 | D3: 200 | E3: =(A3*$C$3)*B3+D3 -> 580 | F3: 0.3
F4: =$E$3*$F$3 -> 174
A5: $5,000-7,500 Pays 5 Places 4 to 1D 1 to 2D
A6: Placings | B6: 1D | D6: 2D
A7: 1st | B7: =($F$4*$C$7) -> 57.42 | C7: 0.33 | D7: =$F$4*$E$7 -> 12.18 | E7: 0.07
A8: 2nd | B8: =$F$4*$C$8 -> 46.98 | C8: 0.27
A9: 3rd | B9: =$F$4*$C$9 -> 34.8 | C9: 0.2
A10: 4th | B10: =$F$4*$C$10 -> 22.62 | C10: 0.13
A11: Totals | B11: =SUM(B7:B10) -> 161.82 | D11: =SUM(D7:D10) -> 12.18 | E11: =(C7+C8+C9+C10+E7+E8) -> 1
A12: =B11+D11 -> 174
A13: $7,501 - 10,000 Pays 6 Places 4 to 1D, 2 to 2D
A14: Placings | B14: 1D | D14: 2D
A15: 1st | B15: =$F$4*$C$15 -> 50.46 | C15: 0.29 | D15: =$F$4*$E$15 -> 15.66 | E15: 0.09
A16: 2nd | B16: =+$F$4*$C$16 -> 41.76 | C16: 0.24 | D16: =F4*E16 -> 8.7 | E16: 0.05
A17: 3rd | B17: =$F$4*$C$17 -> 33.06 | C17: 0.19
A18: 4th | B18: =$F$4*$C$18 -> 24.36 | C18: 0.14
A19: Totals | B19: =SUM(B15:B18) -> 149.64 | D19: =D16+D15 -> 24.36 | E19: =SUM(C15+C16+C17+C18+E15+E16) -> 1
A20: =D19+B19 -> 174
A21: $10,001 - $15,000 Payes 8 Places 5 to 1D, 3 to 2D
A22: Placings | B22: 1D | D22: 2D
A23: 1st | B23: =F4*C23 -> 41.76 | C23: 0.24 | D23: =F4*E23 -> 12.18 | E23: 0.07
A24: 2nd | B24: =F4*C24 -> 34.8 | C24: 0.2 | D24: =F4*E24 -> 8.7 | E24: 0.05
A25: 3rd | B25: =F4*C25 -> 29.58 | C25: 0.17 | D25: =F4*E25 -> 6.96 | E25: 0.04
A26: 4th | B26: =F4*C26 -> 22.62 | C26: 0.13
A27: 5th | B27: =F4*C27 -> 17.4 | C27: 0.1
A28: Totals | B28: =SUM(B23:B27) -> 146.16 | D28: =SUM(D23:D27) -> 27.84 | E28: =C23+C24+C25+C26+C27+E23+E24+E25 -> 1
A29: =B28+D28 -> 174
A30: $15,001 - $25,000 Payes 11 Places 7 to 1D, 4 to 2D
A31: Placings | B31: 1D | D31: 2D
A32: 1st | B32: =$F$4*C32 -> 36.54 | C32: 0.21 | D32: =$F$4*E32 -> 8.7 | E32: 0.05
A33: 2nd | B33: =$F$4*C33 -> 31.32 | C33: 0.18 | D33: =$F$4*E33 -> 6.96 | E33: 0.04
A34: 3rd | B34: 26.1 | C34: 0.15 | D34: 5.22 | E34: 0.03
A35: 4th | B35: 19.14 | C35: 0.11 | D35: 3.48 | E35: 0.02
A36: 5th | B36: 13.92 | C36: 0.08
A37: 6th | B37: 12.18 | C37: 0.07
A38: 7th | B38: 10.44 | C38: 0.06
A39: Totals | B39: =SUM(B32:B38) -> 149.64 | D39: =SUM(D32:D38) -> 24.36 | E39: =C32+C33+C34+C35+C36+C37+C38+E32+E33+E34+E35 -> 1
A40: =SUM(B39+D39) -> 174
A41: $25,001 - $35,000 Payes 12 Places 8 to 1D, 4 to 2D
A42: Placings | B42: 1D | D42: 2D
A43: 1st | B43: =$F$4*C43 -> 33.06 | C43: 0.19 | D43: =$F$4*E43 -> 8.7 | E43: 0.05
A44: 2nd | B44: =$F$4*C44 -> 26.1 | C44: 0.15 | D44: =$F$4*E44 -> 6.96 | E44: 0.04
A45: 3rd | B45: 20.88 | C45: 0.12 | D45: 5.22 | E45: 0.03
A46: 4th | B46: 17.4 | C46: 0.1 | D46: 3.48 | E46: 0.02
A47: 5th | B47: 15.66 | C47: 0.09
A48: 6th | B48: 13.92 | C48: 0.08
A49: 7th | B49: 12.18 | C49: 0.07
A50: 8th | B50: 10.44 | C50: 0.06
A51: Totals | B51: =SUM(B43:B50) -> 149.64 | D51: =SUM(D43:D46) -> 24.36 | E51: =C43+C44+C45+C46+C47+C48+C49+C50+E43+E44+E45+E46 -> 1
A52: =D51+B51 -> 174

Sheet 2D Payout
A1: 2D Payout
A2: Entry Fee | B2: # Entries | C2: % Payback | D2: Added $ | E2: Total Payout
A3: 25 | B3: 8 | C3: 0.8 | E3: =(A3*$C$3)*B3+D3 -> 160
A5: % in each D | B5: 0.7 | C5: 0.3 | D5: Total % = | E5: =SUM(B5:C5) -> 1
B6: 1D | C6: 2D
B7: =(($A$3*$B$3*$C$3*$B$5)+($D$3*$B$5)) -> 112 | C7: =(($A$3*$B$3*$C$3*$C$5)+($D$3*$C$5)) -> 48
A8: Totals | B8: =SUM(B7) -> 112 | C8: =SUM(C7) -> 48 | D8: =SUM(B8:C8) -> 160
A10: For 1-7 riders 1 place
A11: Placings | B11: 1D | C11: 2D
A12: 1st | B12: =$B$7*$E$12 -> 112 | C12: =$C$7*$E$5 -> 48 | D12: è | E12: 1
A13: Totals | B13: =SUM(B12:B12) -> 112 | C13: =SUM(C12:C12) -> 48 | D13: =SUM(B13:C13) -> 160 | E13: =SUM(E12) -> 1
A15: For 8-11 riders 2 places
A16: Placings | B16: 1D | C16: 2D
A17: 1st | B17: =$B$7*$E$17 -> 67.2 | C17: =$C$7*$E$17 -> 28.8 | D17: è | E17: 0.6
A18: 2nd | B18: =$B$7*$E$18 -> 44.8 | C18: =$C$7*$E$18 -> 19.2 | D18: è | E18: 0.4
A19: Totals | B19: =SUM(B17:B18) -> 112 | C19: =SUM(C17:C18) -> 48 | D19: =SUM(B19:C19) -> 160 | E19: =SUM(E17:E18) -> 1
A21: For 12-15 riders 3 places
A22: Placings | B22: 1D | C22: 2D
A23: 1st | B23: =$B$7*$E$23 -> 56 | C23: =$C$7*$E$23 -> 24 | D23: è | E23: 0.5
A24: 2nd | B24: =$B$7*$E$24 -> 33.6 | C24: =$C$7*$E$24 -> 14.4 | D24: è | E24: 0.3
A25: 3rd | B25: =$B$7*$E$25 -> 22.4 | C25: =$C$7*$E$25 -> 9.6 | D25: è | E25: 0.2
A26: Totals | B26: =SUM(B23:B25) -> 112 | C26: =SUM(C23:C25) -> 48 | D26: =SUM(B26:C26) -> 160 | E26: =SUM(E23:E25) -> 1
A28: For 16-19 riders 4 places
A29: Placings | B29: 1D | C29: 2D
A30: 1st | B30: =$B$7*$E$30 -> 44.8 | C30: =$C$7*$E$30 -> 19.2 | D30: è | E30: 0.4
A31: 2nd | B31: =$B$7*$E$31 -> 33.6 | C31: =$C$7*$E$31 -> 14.4 | D31: è | E31: 0.3
A32: 3rd | B32: =$B$7*$E$32 -> 22.4 | C32: =$C$7*$E$32 -> 9.6 | D32: è | E32: 0.2
A33: 4th | B33: =$B$7*$E$33 -> 11.2 | C33: =$C$7*$E$33 -> 4.8 | D33: è | E33: 0.1
A34: Totals | B34: =SUM(B30:B33) -> 112 | C34: =SUM(C30:C33) -> 48 | D34: =SUM(B34:C34) -> 160 | E34: =SUM(E30:E33) -> 1
A36: For 20-23 riders 5 places
A37: Placings | B37: 1D | C37: 2D
A38: 1st | B38: =$B$7*$E$38 -> 33.6 | C38: =$C$7*$E$38 -> 14.4 | D38: è | E38: 0.3
A39: 2nd | B39: =$B$7*$E$39 -> 28 | C39: =$C$7*$E$39 -> 12 | D39: è | E39: 0.25
A40: 3rd | B40: =$B$7*$E$40 -> 22.4 | C40: =$C$7*$E$40 -> 9.6 | D40: è | E40: 0.2
A41: 4th | B41: =$B$7*$E$41 -> 16.8 | C41: =$C$7*$E$41 -> 7.2 | D41: è | E41: 0.15
A42: 5th | B42: =$B$7*$E$42 -> 11.2 | C42: =$C$7*$E$42 -> 4.8 | D42: è | E42: 0.1
A43: Totals | B43: =SUM(B38:B42) -> 112 | C43: =SUM(C38:C42) -> 48 | D43: =SUM(B43:C43) -> 160 | E43: =SUM(E38:E42) -> 1
A45: For 24-27 riders 6 places
A46: Placings | B46: 1D | C46: 2D
A47: 1st | B47: =$B$7*$E$47 -> 28 | C47: =$C$7*$E$47 -> 12 | D47: è | E47: 0.25
A48: 2nd | B48: =$B$7*$E$48 -> 22.4 | C48: =$C$7*$E$48 -> 9.6 | D48: è | E48: 0.2
A49: 3rd | B49: =$B$7*$E$49 -> 20.16 | C49: =$C$7*$E$49 -> 8.64 | D49: è | E49: 0.18
A50: 4th | B50: =$B$7*$E$50 -> 16.8 | C50: =$C$7*$E$50 -> 7.2 | D50: è | E50: 0.15
A51: 5th | B51: =$B$7*$E$51 -> 13.44 | C51: =$C$7*$E$51 -> 5.76 | D51: è | E51: 0.12
A52: 6th | B52: =$B$7*$E$52 -> 11.2 | C52: =$C$7*$E$52 -> 4.8 | D52: è | E52: 0.1
A53: Totals | B53: =SUM(B47:B52) -> 112 | C53: =SUM(C47:C52) -> 48 | D53: =SUM(B53:C53) -> 160 | E53: =SUM(E47:E52) -> 1
A55: For 28-31 riders 7 places
A56: Placings | B56: 1D | C56: 2D
A57: 1st | B57: =$B$7*$E$57 -> 24.64 | C57: =$C$7*$E$57 -> 10.56 | D57: è | E57: 0.22
A58: 2nd | B58: =$B$7*$E$58 -> 20.16 | C58: =$C$7*$E$58 -> 8.64 | D58: è | E58: 0.18
A59: 3rd | B59: =$B$7*$E$59 -> 17.92 | C59: =$C$7*$E$59 -> 7.68 | D59: è | E59: 0.16
A60: 4th | B60: =$B$7*$E$60 -> 15.68 | C60: =$C$7*$E$60 -> 6.72 | D60: è | E60: 0.14
A61: 5th | B61: =$B$7*$E$61 -> 13.44 | C61: =$C$7*$E$61 -> 5.76 | D61: è | E61: 0.12
A62: 6th | B62: =$B$7*$E$62 -> 11.2 | C62: =$C$7*$E$62 -> 4.8 | D62: è | E62: 0.1
A63: 7th | B63: =$B$7*$E$63 -> 8.96 | C63: =$C$7*$E$63 -> 3.84 | D63: è | E63: 0.08
A64: Totals | B64: =SUM(B57:B63) -> 112 | C64: =SUM(C57:C63) -> 48 | D64: =SUM(B64:C64) -> 160 | E64: =SUM(E57:E63) -> 1
A66: For 32 or more riders 8 places
A67: Placings | B67: 1D | C67: 2D
A68: 1st | B68: =$B$7*$E$68 -> 25.76 | C68: =$C$7*$E$68 -> 11.04 | D68: è | E68: 0.23
A69: 2nd | B69: =$B$7*$E$69 -> 22.4 | C69: =$C$7*$E$69 -> 9.6 | D69: è | E69: 0.2
A70: 3rd | B70: =$B$7*$E$70 -> 19.04 | C70: =$C$7*$E$70 -> 8.16 | D70: è | E70: 0.17
A71: 4th | B71: =$B$7*$E$71 -> 15.68 | C71: =$C$7*$E$71 -> 6.72 | D71: è | E71: 0.14
A72: 5th | B72: =$B$7*$E$72 -> 12.32 | C72: =$C$7*$E$72 -> 5.28 | D72: è | E72: 0.11
A73: 6th | B73: =$B$7*$E$73 -> 8.96 | C73: =$C$7*$E$73 -> 3.84 | D73: è | E73: 0.08
A74: 7th | B74: =$B$7*$E$74 -> 5.6 | C74: =$C$7*$E$74 -> 2.4 | D74: è | E74: 0.05
A75: 8th | B75: =$B$7*$E$75 -> 2.24 | C75: =$C$7*$E$75 -> 0.96 | D75: è | E75: 0.02
A76: Totals | B76: =SUM(B68:B75) -> 112 | C76: =SUM(C68:C75) -> 48 | D76: =SUM(B76:C76) -> 160 | E76: =SUM(E68:E75) -> 1

Sheet 3D Payout (hidden)
A1: 3D Payout
A2: Entry Fee | B2: # Entries | C2: % Payback | D2: $ From Entry | E2: Added $ | F2: Total Payout
A3: 10 | B3: 3 | C3: 0.8 | D3: =$A$3*$C$3*$B$3 -> 24 | F3: =$D$3+$E$3 -> 24
A5: % in each D | B5: 0.5 | C5: 0.3 | D5: 0.2 | E5: Total % = | F5: =SUM(B5:D5) -> 1
B6: 1D | C6: 2D | D6: 3D
B7: =(($A$3*$B$3*$C$3*$B$5)+($E$3*$B$5)) -> 12 | C7: =(($A$3*$B$3*$C$3*$C$5)+($E$3*$C$5)) -> 7.2 | D7: =(($A$3*$B$3*$C$3*$D$5)+($E$3*$D$5)) -> 4.8
A8: Totals | B8: =SUM(B7) -> 12 | C8: =SUM(C7) -> 7.2 | D8: 4.8 | E8: =SUM(B8:D8) -> 24
A10: For 1-10 riders 1 place
A11: Placings | B11: 1D | C11: 2D | D11: 3D
A12: 1st | B12: =$B$7*$F$12 -> 12 | C12: =$C$7*$F$12 -> 7.2 | D12: =$D$7*$F$12 -> 4.8 | E12: è | F12: 1
A13: Totals | B13: =SUM(B12:B12) -> 12 | C13: =SUM(C12:C12) -> 7.2 | D13: =SUM(D12:D12) -> 4.8 | E13: =SUM(B13:D13) -> 24 | F13: =SUM(F12) -> 1
A15: For 11-15 riders 2 places
A16: Placings | B16: 1D | C16: 2D | D16: 3D
A17: 1st | B17: =$B$7*$F$17 -> 7.2 | C17: =$C$7*$F$17 -> 4.32 | D17: =$D$7*$F$17 -> 2.88 | E17: è | F17: 0.6
A18: 2nd | B18: =$B$7*$F$18 -> 4.8 | C18: =$C$7*$F$18 -> 2.88 | D18: =$D$7*$F$18 -> 1.92 | E18: è | F18: 0.4
A19: Totals | B19: =SUM(B17:B18) -> 12 | C19: =SUM(C17:C18) -> 7.2 | D19: =SUM(D17:D18) -> 4.8 | E19: =SUM(B19:D19) -> 24 | F19: =SUM(F17:F18) -> 1
A21: For 16-30 riders 3 places
A22: Placings | B22: 1D | C22: 2D | D22: 3D
A23: 1st | B23: =$B$7*$F$23 -> 6 | C23: =$C$7*$F$23 -> 3.6 | D23: =$D$7*$F$23 -> 2.4 | E23: è | F23: 0.5
A24: 2nd | B24: =$B$7*$F$24 -> 3.6 | C24: =$C$7*$F$24 -> 2.16 | D24: =$D$7*$F$24 -> 1.44 | E24: è | F24: 0.3
A25: 3rd | B25: =$B$7*$F$25 -> 2.4 | C25: =$C$7*$F$25 -> 1.44 | D25: =$D$7*$F$25 -> 0.96 | E25: è | F25: 0.2
A26: Totals | B26: =SUM(B23:B25) -> 12 | C26: =SUM(C23:C25) -> 7.2 | D26: =SUM(D22:D25) -> 4.8 | E26: =SUM(B26:D26) -> 24 | F26: =SUM(F23:F25) -> 1
A28: For 31-60 riders 4 places
A29: Placings | B29: 1D | C29: 2D | D29: 3D
A30: 1st | B30: =$B$7*$F$30 -> 5.04 | C30: =$C$7*$F$30 -> 3.024 | D30: =$D$7*$F$30 -> 2.016 | E30: è | F30: 0.42
A31: 2nd | B31: =$B$7*$F$31 -> 3.48 | C31: =$C$7*$F$31 -> 2.088 | D31: =$D$7*$F$31 -> 1.392 | E31: è | F31: 0.29
A32: 3rd | B32: =$B$7*$F$32 -> 2.28 | C32: =$C$7*$F$32 -> 1.368 | D32: =$D$7*$F$32 -> 0.912 | E32: è | F32: 0.19
A33: 4th | B33: =$B$7*$F$33 -> 1.2 | C33: =$C$7*$F$33 -> 0.72 | D33: =$D$7*$F$33 -> 0.48 | E33: è | F33: 0.1
A34: Totals | B34: =SUM(B30:B33) -> 12 | C34: =SUM(C30:C33) -> 7.2 | D34: =SUM(D30:D33) -> 4.8 | E34: =SUM(B34:D34) -> 24 | F34: =SUM(F30:F33) -> 1
A36: For 61-90 riders 5 places
A37: Placings | B37: 1D | C37: 2D | D37: 3D
A38: 1st | B38: =$B$7*$F$38 -> 4.56 | C38: =$C$7*$F$38 -> 2.736 | D38: =$D$7*$F$38 -> 1.824 | E38: è | F38: 0.38
A39: 2nd | B39: =$B$7*$F$39 -> 3.36 | C39: =$C$7*$F$39 -> 2.016 | D39: =$D$7*$F$39 -> 1.344 | E39: è | F39: 0.28
A40: 3rd | B40: =$B$7*$F$40 -> 2.16 | C40: =$C$7*$F$40 -> 1.296 | D40: =$D$7*$F$40 -> 0.864 | E40: è | F40: 0.18
A41: 4th | B41: =$B$7*$F$41 -> 1.2 | C41: =$C$7*$F$41 -> 0.72 | D41: =$D$7*$F$41 -> 0.48 | E41: è | F41: 0.1
A42: 5th | B42: =$B$7*$F$42 -> 0.72 | C42: =$C$7*$F$42 -> 0.432 | D42: =$D$7*$F$42 -> 0.288 | E42: è | F42: 0.06
A43: Totals | B43: =SUM(B38:B42) -> 12 | C43: =SUM(C38:C42) -> 7.2 | D43: =SUM(D38:D42) -> 4.8 | E43: =SUM(B43:D43) -> 24 | F43: =SUM(F38:F42) -> 1
A45: For 91-120 riders 6 places
A46: Placings | B46: 1D | C46: 2D | D46: 3D
A47: 1st | B47: =$B$7*$F$47 -> 4.32 | C47: =$C$7*$F$47 -> 2.592 | D47: =$D$7*$F$47 -> 1.728 | E47: è | F47: 0.36
A48: 2nd | B48: =$B$7*$F$48 -> 3.12 | C48: =$C$7*$F$48 -> 1.872 | D48: =$D$7*$F$48 -> 1.248 | E48: è | F48: 0.26
A49: 3rd | B49: =$B$7*$F$49 -> 1.92 | C49: =$C$7*$F$49 -> 1.152 | D49: =$D$7*$F$49 -> 0.768 | E49: è | F49: 0.16
A50: 4th | B50: =$B$7*$F$50 -> 1.2 | C50: =$C$7*$F$50 -> 0.72 | D50: =$D$7*$F$50 -> 0.48 | E50: è | F50: 0.1
A51: 5th | B51: =$B$7*$F$51 -> 0.84 | C51: =$C$7*$F$51 -> 0.504 | D51: =$D$7*$F$51 -> 0.336 | E51: è | F51: 0.07
A52: 6th | B52: =$B$7*$F$52 -> 0.6 | C52: =$C$7*$F$52 -> 0.36 | D52: =$D$7*$F$52 -> 0.24 | E52: è | F52: 0.05
A53: Totals | B53: =SUM(B47:B52) -> 12 | C53: =SUM(C47:C52) -> 7.2 | D53: =SUM(D47:D52) -> 4.8 | E53: =SUM(B53:D53) -> 24 | F53: =SUM(F47:F52) -> 1
A55: For 121-200 riders 7 places
A56: Placings | B56: 1D | C56: 2D | D56: 3D
A57: 1st | B57: =$B$7*$F$57 -> 3.12 | C57: =$C$7*$F$57 -> 1.872 | D57: =$D$7*$F$57 -> 1.248 | E57: è | F57: 0.26
A58: 2nd | B58: =$B$7*$F$58 -> 2.4 | C58: =$C$7*$F$58 -> 1.44 | D58: =$D$7*$F$58 -> 0.96 | E58: è | F58: 0.2
A59: 3rd | B59: =$B$7*$F$59 -> 1.8 | C59: =$C$7*$F$59 -> 1.08 | D59: =$D$7*$F$59 -> 0.72 | E59: è | F59: 0.15
A60: 4th | B60: =$B$7*$F$60 -> 1.44 | C60: =$C$7*$F$60 -> 0.864 | D60: =$D$7*$F$60 -> 0.576 | E60: è | F60: 0.12
A61: 5th | B61: =$B$7*$F$61 -> 1.2 | C61: =$C$7*$F$61 -> 0.72 | D61: =$D$7*$F$61 -> 0.48 | E61: è | F61: 0.1
A62: 6th | B62: =$B$7*$F$62 -> 1.08 | C62: =$C$7*$F$62 -> 0.648 | D62: =$D$7*$F$62 -> 0.432 | E62: è | F62: 0.09
A63: 7th | B63: =$B$7*$F$63 -> 0.96 | C63: =$C$7*$F$63 -> 0.576 | D63: =$D$7*$F$63 -> 0.384 | E63: è | F63: 0.08
A64: Totals | B64: =SUM(B57:B63) -> 12 | C64: =SUM(C57:C63) -> 7.2 | D64: =SUM(D57:D63) -> 4.8 | E64: =SUM(B64:D64) -> 24 | F64: =SUM(F57:F63) -> 1
A66: For 201 or more riders 8 places
A67: Placings | B67: 1D | C67: 2D | D67: 3D
A68: 1st | B68: =$B$7*0.24 -> 2.88 | C68: =$C$7*0.24 -> 1.728 | D68: =$D$7*0.24 -> 1.152 | E68: è | F68: 0.24
A69: 2nd | B69: =$B$7*0.18 -> 2.16 | C69: =$C$7*0.18 -> 1.296 | D69: =$D$7*0.18 -> 0.864 | E69: è | F69: 0.18
A70: 3rd | B70: =$B$7*0.15 -> 1.8 | C70: =$C$7*0.15 -> 1.08 | D70: =$D$7*0.15 -> 0.72 | E70: è | F70: 0.15
A71: 4th | B71: =$B$7*0.12 -> 1.44 | C71: =$C$7*0.12 -> 0.864 | D71: =$D$7*0.12 -> 0.576 | E71: è | F71: 0.12
A72: 5th | B72: =$B$7*0.1 -> 1.2 | C72: =$C$7*0.1 -> 0.72 | D72: =$D$7*0.1 -> 0.48 | E72: è | F72: 0.1
A73: 6th | B73: =$B$7*0.08 -> 0.96 | C73: =$C$7*0.08 -> 0.576 | D73: =$D$7*0.08 -> 0.384 | E73: è | F73: 0.08
A74: 7th | B74: =$B$7*0.07 -> 0.84 | C74: =$C$7*0.07 -> 0.504 | D74: =$D$7*0.07 -> 0.336 | E74: è | F74: 0.07
A75: 8th | B75: =$B$7*0.06 -> 0.72 | C75: =$C$7*0.06 -> 0.432 | D75: =$D$7*0.06 -> 0.288 | E75: è | F75: 0.06
A76: Totals | B76: =SUM(B68:B75) -> 12 | C76: =SUM(C68:C75) -> 7.2 | D76: =SUM(D68:D75) -> 4.8 | E76: =SUM(B76:D76) -> 24 | F76: =SUM(F68:F75) -> 1

Sheet 4D Payout BBR (hidden)
A1: 4D Payout BBR
A2: Entry Fee | B2: # Entries | C2: % Payback | D2: $ From Entry | E2: Added $ | F2: Total Payout
A3: 40 | B3: 200 | C3: 0.8 | D3: =$A$3*$C$3*$B$3 -> 6400 | E3: 1100 | F3: =($A$3*$C$3)*$B$3+$E$3 -> 7500
A5: % in each D | B5: 0.35 | C5: 0.3 | D5: 0.2 | E5: 0.15 | F5: Total % Payout | G5: =SUM(B5:E5) -> 1
B6: 1D | C6: 2D | D6: 3D | E6: 4D
B7: =(($A$3*$B$3*$C$3*0.35)+($E$3/4)) -> 2515 | C7: =(($A$3*$B$3*$C$3*0.3)+($E$3/4)) -> 2195 | D7: =(($A$3*$B$3*$C$3*0.2)+($E$3/4)) -> 1555 | E7: =(($A$3*$B$3*$C$3*0.15)+($E$3/4)) -> 1235
A8: Totals | B8: =SUM(B7) -> 2515 | C8: =SUM(C7) -> 2195 | D8: 1555 | E8: 1235 | F8: =SUM(B8:E8) -> 7500
A10: For 1-16 riders 1 place
A11: Placings | B11: 1D | C11: 2D | D11: 3D | E11: 4D
A12: 1st | B12: =$B$7*$G$12 -> 2515 | C12: =$C$7*$G$12 -> 2195 | D12: =$D$7*$G$12 -> 1555 | E12: =$E$7*$G$12 -> 1235 | F12: è | G12: 1
A13: Totals | B13: =SUM(B12:B12) -> 2515 | C13: =SUM(C12:C12) -> 2195 | D13: =SUM(D12:D12) -> 1555 | E13: =SUM(E12:E12) -> 1235 | F13: =SUM(B13:E13) -> 7500 | G13: =SUM(G12) -> 1
A15: For 17-33 riders 2 places
A16: Placings | B16: 1D | C16: 2D | D16: 3D | E16: 4D
A17: 1st | B17: =$B$7*$G$17 -> 1509 | C17: =$C$7*$G$17 -> 1317 | D17: =$D$7*$G$17 -> 933 | E17: =$E$7*$G$17 -> 741 | F17: è | G17: 0.6
A18: 2nd | B18: =$B$7*$G$18 -> 1006 | C18: =$C$7*$G$18 -> 878 | D18: =$D$7*$G$18 -> 622 | E18: =$E$7*$G$18 -> 494 | F18: è | G18: 0.4
A19: Totals | B19: =SUM(B17:B18) -> 2515 | C19: =SUM(C17:C18) -> 2195 | D19: =SUM(D17:D18) -> 1555 | E19: =SUM(E17:E18) -> 1235 | F19: =SUM(B19:E19) -> 7500 | G19: =SUM(G17:G18) -> 1
A21: For 34-66 riders 3 places
A22: Placings | B22: 1D | C22: 2D | D22: 3D | E22: 4D
A23: 1st | B23: =$B$7*$G$23 -> 1257.5 | C23: =$C$7*$G$23 -> 1097.5 | D23: =$D$7*$G$23 -> 777.5 | E23: =$E$7*$G$23 -> 617.5 | F23: è | G23: 0.5
A24: 2nd | B24: =$B$7*$G$24 -> 754.5 | C24: =$C$7*$G$24 -> 658.5 | D24: =$D$7*$G$24 -> 466.5 | E24: =$E$7*$G$24 -> 370.5 | F24: è | G24: 0.3
A25: 3rd | B25: =$B$7*$G$25 -> 503 | C25: =$C$7*$G$25 -> 439 | D25: =$D$7*$G$25 -> 311 | E25: =$E$7*$G$25 -> 247 | F25: è | G25: 0.2
A26: Totals | B26: =SUM(B23:B25) -> 2515 | C26: =SUM(C23:C25) -> 2195 | D26: =SUM(D23:D25) -> 1555 | E26: =SUM(E23:E25) -> 1235 | F26: =SUM(B26:E26) -> 7500 | G26: =SUM(G23:G25) -> 1
A28: For 97-95 riders 4 places
A29: Placings | B29: 1D | C29: 2D | D29: 3D | E29: 4D
A30: 1st | B30: =$B$7*$G$30 -> 1006 | C30: =$C$7*$G$30 -> 878 | D30: =$D$7*$G$30 -> 622 | E30: =$E$7*$G$30 -> 494 | F30: è | G30: 0.4
A31: 2nd | B31: =$B$7*$G$31 -> 754.5 | C31: =$C$7*$G$31 -> 658.5 | D31: =$D$7*$G$31 -> 466.5 | E31: =$E$7*$G$31 -> 370.5 | F31: è | G31: 0.3
A32: 3rd | B32: =$B$7*$G$32 -> 503 | C32: =$C$7*$G$32 -> 439 | D32: =$D$7*$G$32 -> 311 | E32: =$E$7*$G$32 -> 247 | F32: è | G32: 0.2
A33: 4th | B33: =$B$7*$G$33 -> 251.5 | C33: =$C$7*$G$33 -> 219.5 | D33: =$D$7*$G$33 -> 155.5 | E33: =$E$7*$G$33 -> 123.5 | F33: è | G33: 0.1
A34: Totals | B34: =SUM(B30:B33) -> 2515 | C34: =SUM(C30:C33) -> 2195 | D34: =SUM(D30:D33) -> 1555 | E34: =SUM(E30:E33) -> 1235 | F34: =SUM(B34:E34) -> 7500 | G34: =SUM(G30:G33) -> 1
A36: For 96-133 riders 5 places
A37: Placings | B37: 1D | C37: 2D | D37: 3D | E37: 4D
A38: 1st | B38: =$B$7*$G$38 -> 829.95 | C38: =$C$7*$G$38 -> 724.35 | D38: =$D$7*G38 -> 513.15 | E38: =$E$7*$G$38 -> 407.55 | F38: è | G38: 0.33
A39: 2nd | B39: =$B$7*$G$39 -> 679.05 | C39: =$C$7*$G$39 -> 592.65 | D39: =$D$7*$G$39 -> 419.85 | E39: =$E$7*$G$39 -> 333.45 | F39: è | G39: 0.27
A40: 3rd | B40: =$B$7*$G$40 -> 503 | C40: =$C$7*$G$40 -> 439 | D40: =$D$7*$G$40 -> 311 | E40: =$E$7*$G$40 -> 247 | F40: è | G40: 0.2
A41: 4th | B41: =$B$7*$G$41 -> 326.95 | C41: =$C$7*$G$41 -> 285.35 | D41: =$D$7*$G$41 -> 202.15 | E41: =$E$7*$G$41 -> 160.55 | F41: è | G41: 0.13
A42: 5th | B42: =$B$7*$G$42 -> 176.05 | C42: =$C$7*$G$42 -> 153.65 | D42: =$D$7*$G$42 -> 108.85 | E42: =$E$7*$G$42 -> 86.45 | F42: è | G42: 0.07
A43: Totals | B43: =SUM(B38:B42) -> 2515 | C43: =SUM(C38:C42) -> 2195 | D43: =SUM(D38:D42) -> 1555 | E43: =SUM(E38:E42) -> 1235 | F43: =SUM(B43:E43) -> 7500 | G43: =SUM(G38:G42) -> 1
A45: For 134-166 riders 6 places
A46: Placings | B46: 1D | C46: 2D | D46: 3D | E46: 4D
A47: 1st | B47: =$B$7*$G$47 -> 729.35 | C47: =$C$7*$G$47 -> 636.55 | D47: =$D$7*$G$47 -> 450.95 | E47: =$E$7*$G$47 -> 358.15 | F47: è | G47: 0.29
A48: 2nd | B48: =$B$7*$G$48 -> 603.6 | C48: =$C$7*$G$48 -> 526.8 | D48: =$D$7*$G$48 -> 373.2 | E48: =$E$7*$G$48 -> 296.4 | F48: è | G48: 0.24
A49: 3rd | B49: =$B$7*$G$49 -> 477.85 | C49: =$C$7*$G$49 -> 417.05 | D49: =$D$7*$G$49 -> 295.45 | E49: =$E$7*$G$49 -> 234.65 | F49: è | G49: 0.19
A50: 4th | B50: =$B$7*$G$50 -> 352.1 | C50: =$C$7*$G$50 -> 307.3 | D50: =$D$7*$G$50 -> 217.7 | E50: =$E$7*$G$50 -> 172.9 | F50: è | G50: 0.14
A51: 5th | B51: =$B$7*$G$51 -> 226.35 | C51: =$C$7*$G$51 -> 197.55 | D51: =$D$7*$G$51 -> 139.95 | E51: =$E$7*$G$51 -> 111.15 | F51: è | G51: 0.09
A52: 6th | B52: =$B$7*$G$52 -> 125.75 | C52: =$C$7*$G$52 -> 109.75 | D52: =$D$7*$G$52 -> 77.75 | E52: =$E$7*$G$52 -> 61.75 | F52: è | G52: 0.05
A53: Totals | B53: =SUM(B47:B52) -> 2515 | C53: =SUM(C47:C52) -> 2195 | D53: =SUM(D47:D52) -> 1555 | E53: =SUM(E47:E52) -> 1235 | F53: =SUM(B53:E53) -> 7500 | G53: =SUM(G47:G52) -> 1
A55: For 167-222 riders 8 places
A56: Placings | B56: 1D | C56: 2D | D56: 3D | E56: 4D
A57: 1st | B57: =$B$7*$G$57 -> 603.6 | C57: =$C$7*$G$57 -> 526.8 | D57: =$D$7*$G$57 -> 373.2 | E57: =$E$7*$G$57 -> 296.4 | F57: è | G57: 0.24
A58: 2nd | B58: =$B$7*$G$58 -> 503 | C58: =$C$7*$G$58 -> 439 | D58: =$D$7*$G$58 -> 311 | E58: =$E$7*$G$58 -> 247 | F58: è | G58: 0.2
A59: 3rd | B59: =$B$7*$G$59 -> 427.55 | C59: =$C$7*$G$59 -> 373.15 | D59: =$D$7*$G$59 -> 264.35 | E59: =$E$7*$G$59 -> 209.95 | F59: è | G59: 0.17
A60: 4th | B60: =$B$7*$G$60 -> 326.95 | C60: =$C$7*$G$60 -> 285.35 | D60: =$D$7*$G$60 -> 202.15 | E60: =$E$7*$G$60 -> 160.55 | F60: è | G60: 0.13
A61: 5th | B61: =$B$7*$G$61 -> 251.5 | C61: =$C$7*$G$61 -> 219.5 | D61: =$D$7*$G$61 -> 155.5 | E61: =$E$7*$G$61 -> 123.5 | F61: è | G61: 0.1
A62: 6th | B62: =$B$7*$G$62 -> 176.05 | C62: =$C$7*$G$62 -> 153.65 | D62: =$D$7*$G$62 -> 108.85 | E62: =$E$7*$G$62 -> 86.45 | F62: è | G62: 0.07
A63: 7th | B63: =$B$7*$G$63 -> 125.75 | C63: =$C$7*$G$63 -> 109.75 | D63: =$D$7*$G$63 -> 77.75 | E63: =$E$7*$G$63 -> 61.75 | F63: è | G63: 0.05
A64: 8th | B64: =$B$7*$G$64 -> 100.6 | C64: =$C$7*$G$64 -> 87.8 | D64: =$D$7*$G$64 -> 62.2 | E64: =$E$7*$G$64 -> 49.4 | F64: è | G64: 0.04
A65: Totals | B65: =SUM(B57:B64) -> 2515 | C65: =SUM(C57:C64) -> 2195 | D65: =SUM(D57:D64) -> 1555 | E65: =SUM(E57:E64) -> 1235 | F65: =SUM(B65:E65) -> 7500 | G65: =SUM(G57:G64) -> 1
A67: For 223-333 riders 10 places
A68: Placings | B68: 1D | C68: 2D | D68: 3D | E68: 4D
A69: 1st | B69: =$B$7*$G$69 -> 528.15 | C69: =$C$7*$G$69 -> 460.95 | D69: =$D$7*$G$69 -> 326.55 | E69: =$E$7*$G$69 -> 259.35 | F69: è | G69: 0.21
A70: 2nd | B70: =$B$7*$G$70 -> 452.7 | C70: =$C$7*$G$70 -> 395.1 | D70: =$D$7*$G$70 -> 279.9 | E70: =$E$7*$G$70 -> 222.3 | F70: è | G70: 0.18
A71: 3rd | B71: =$B$7*$G$71 -> 377.25 | C71: =$C$7*$G$71 -> 329.25 | D71: =$D$7*$G$71 -> 233.25 | E71: =$E$7*$G$71 -> 185.25 | F71: è | G71: 0.15
A72: 4th | B72: =$B$7*$G$72 -> 301.8 | C72: =$C$7*$G$72 -> 263.4 | D72: =$D$7*$G$72 -> 186.6 | E72: =$E$7*$G$72 -> 148.2 | F72: è | G72: 0.12
A73: 5th | B73: =$B$7*$G$73 -> 226.35 | C73: =$C$7*$G$73 -> 197.55 | D73: =$D$7*$G$73 -> 139.95 | E73: =$E$7*$G$73 -> 111.15 | F73: è | G73: 0.09
A74: 6th | B74: =$B$7*$G$74 -> 176.05 | C74: =$C$7*$G$74 -> 153.65 | D74: =$D$7*$G$74 -> 108.85 | E74: =$E$7*$G$74 -> 86.45 | F74: è | G74: 0.07
A75: 7th | B75: =$B$7*$G$75 -> 150.9 | C75: =$C$7*$G$75 -> 131.7 | D75: =$D$7*$G$75 -> 93.3 | E75: =$E$7*$G$75 -> 74.1 | F75: è | G75: 0.06
A76: 8th | B76: =$B$7*$G$76 -> 125.75 | C76: =$C$7*$G$76 -> 109.75 | D76: =$D$7*$G$76 -> 77.75 | E76: =$E$7*$G$76 -> 61.75 | F76: è | G76: 0.05
A77: 9th | B77: =$B$7*$G$77 -> 100.6 | C77: =$C$7*$G$77 -> 87.8 | D77: =$D$7*$G$77 -> 62.2 | E77: =$E$7*$G$77 -> 49.4 | F77: è | G77: 0.04
A78: 10th | B78: =$B$7*$G$78 -> 75.45 | C78: =$C$7*$G$78 -> 65.85 | D78: =$D$7*$G$78 -> 46.65 | E78: =$E$7*$G$78 -> 37.05 | F78: è | G78: 0.03
A79: Totals | B79: =SUM(B69:B78) -> 2515 | C79: =SUM(C69:C78) -> 2195 | D79: =SUM(D69:D78) -> 1555 | E79: =SUM(E69:E78) -> 1235 | F79: =B79+C79+D79+E79 -> 7500 | G79: =SUM(G69:G78) -> 1
A81: For 334-500 riders 12 places
A82: Placings | B82: 1D | C82: 2D | D82: 3D | E82: 4D
A83: 1st | B83: =$B$7*$G$83 -> 477.85 | C83: =$C$7*$G$83 -> 417.05 | D83: =$D$7*$G$83 -> 295.45 | E83: =$E$7*$G$83 -> 234.65 | F83: è | G83: 0.19
A84: 2nd | B84: =$B$7*$G$84 -> 377.25 | C84: =$C$7*$G$84 -> 329.25 | D84: =$D$7*$G$84 -> 233.25 | E84: =$E$7*$G$84 -> 185.25 | F84: è | G84: 0.15
A85: 3rd | B85: =$B$7*$G$85 -> 301.8 | C85: =$C$7*$G$85 -> 263.4 | D85: =$D$7*$G$85 -> 186.6 | E85: =$E$7*$G$85 -> 148.2 | F85: è | G85: 0.12
A86: 4th | B86: =$B$7*$G$86 -> 251.5 | C86: =$C$7*$G$86 -> 219.5 | D86: =$D$7*$G$86 -> 155.5 | E86: =$E$7*$G$86 -> 123.5 | F86: è | G86: 0.1
A87: 5th | B87: =$B$7*$G$87 -> 226.35 | C87: =$C$7*$G$87 -> 197.55 | D87: =$D$7*$G$87 -> 139.95 | E87: =$E$7*$G$87 -> 111.15 | F87: è | G87: 0.09
A88: 6th | B88: =$B$7*$G$88 -> 201.2 | C88: =$C$7*$G$88 -> 175.6 | D88: =$D$7*$G$88 -> 124.4 | E88: =$E$7*$G$88 -> 98.8 | F88: è | G88: 0.08
A89: 7th | B89: =$B$7*$G$89 -> 176.05 | C89: =$C$7*$G$89 -> 153.65 | D89: =$D$7*$G$89 -> 108.85 | E89: =$E$7*$G$89 -> 86.45 | F89: è | G89: 0.07
A90: 8th | B90: =$B$7*$G$90 -> 150.9 | C90: =$C$7*$G$90 -> 131.7 | D90: =$D$7*$G$90 -> 93.3 | E90: =$E$7*$G$90 -> 74.1 | F90: è | G90: 0.06
A91: 9th | B91: =$B$7*$G$91 -> 125.75 | C91: =$C$7*$G$91 -> 109.75 | D91: =$D$7*$G$91 -> 77.75 | E91: =$E$7*$G$91 -> 61.75 | F91: è | G91: 0.05
A92: 10th | B92: =$B$7*$G$92 -> 100.6 | C92: =$C$7*$G$92 -> 87.8 | D92: =$D$7*$G$92 -> 62.2 | E92: =$E$7*$G$92 -> 49.4 | F92: è | G92: 0.04
A93: 11th | B93: =$B$7*$G$93 -> 75.45 | C93: =$C$7*$G$93 -> 65.85 | D93: =$D$7*$G$93 -> 46.65 | E93: =$E$7*$G$93 -> 37.05 | F93: è | G93: 0.03
A94: 12th | B94: =$B$7*$G$94 -> 50.3 | C94: =$C$7*$G$94 -> 43.9 | D94: =$D$7*$G$94 -> 31.1 | E94: =$E$7*$G$94 -> 24.7 | F94: è | G94: 0.02
A95: Totals | B95: =SUM(B83:B94) -> 2515 | C95: =SUM(C83:C94) -> 2195 | D95: 1555 | E95: 1235 | F95: =B95+C95+D95+E95 -> 7500 | G95: =SUM(G83:G94) -> 1
A97: For 501-750 riders 15 places
A98: Placings | B98: 1D | C98: 2D | D98: 3D | E98: 4D
A99: 1st | B99: =$B$7*$G$99 -> 452.7 | C99: =$C$7*$G$99 -> 395.1 | D99: =$D$7*$G$99 -> 279.9 | E99: =$E$7*$G$99 -> 222.3 | F99: è | G99: 0.18
A100: 2nd | B100: =$B$7*$G$100 -> 377.25 | C100: =$C$7*$G$100 -> 329.25 | D100: =$D$7*$G$100 -> 233.25 | E100: =$E$7*$G$100 -> 185.25 | F100: è | G100: 0.15
A101: 3rd | B101: =$B$7*$G$101 -> 301.8 | C101: =$C$7*$G$101 -> 263.4 | D101: =$D$7*$G$101 -> 186.6 | E101: =$E$7*$G$101 -> 148.2 | F101: è | G101: 0.12
A102: 4th | B102: =$B$7*$G$102 -> 251.5 | C102: =$C$7*$G$102 -> 219.5 | D102: =$D$7*$G$102 -> 155.5 | E102: =$E$7*$G$102 -> 123.5 | F102: è | G102: 0.1
A103: 5th | B103: =$B$7*$G$103 -> 213.775 | C103: =$C$7*$G$103 -> 186.575 | D103: =$D$7*$G$103 -> 132.175 | E103: =$E$7*$G$103 -> 104.975 | F103: è | G103: 0.085
A104: 6th | B104: =$B$7*$G$104 -> 176.05 | C104: =$C$7*$G$104 -> 153.65 | D104: =$D$7*$G$104 -> 108.85 | E104: =$E$7*$G$104 -> 86.45 | F104: è | G104: 0.07
A105: 7th | B105: =$B$7*$G$105 -> 150.9 | C105: =$C$7*$G$105 -> 131.7 | D105: =$D$7*$G$105 -> 93.3 | E105: =$E$7*$G$105 -> 74.1 | F105: è | G105: 0.06
A106: 8th | B106: =$B$7*$G$106 -> 125.75 | C106: =$C$7*$G$106 -> 109.75 | D106: =$D$7*$G$106 -> 77.75 | E106: =$E$7*$G$106 -> 61.75 | F106: è | G106: 0.05
A107: 9th | B107: =$B$7*$G$107 -> 106.8875 | C107: =$C$7*$G$107 -> 93.2875 | D107: =$D$7*$G$107 -> 66.0875 | E107: =$E$7*$G$107 -> 52.4875 | F107: è | G107: 0.0425
A108: 10th | B108: =$B$7*$G$108 -> 88.025 | C108: =$C$7*$G$108 -> 76.825 | D108: =$D$7*$G$108 -> 54.425 | E108: =$E$7*$G$108 -> 43.225 | F108: è | G108: 0.035
A109: 11th | B109: =$B$7*$G$109 -> 75.45 | C109: =$C$7*$G$109 -> 65.85 | D109: =$D$7*$G$109 -> 46.65 | E109: =$E$7*$G$109 -> 37.05 | F109: è | G109: 0.03
A110: 12th | B110: =$B$7*$G$110 -> 62.875 | C110: =$C$7*$G$110 -> 54.875 | D110: =$D$7*$G$110 -> 38.875 | E110: =$E$7*$G$110 -> 30.875 | F110: è | G110: 0.025
A111: 13th | B111: =$B$7*$G$111 -> 50.3 | C111: =$C$7*$G$111 -> 43.9 | D111: =$D$7*$G$111 -> 31.1 | E111: =$E$7*$G$111 -> 24.7 | F111: è | G111: 0.02
A112: 14th | B112: =$B$7*$G$112 -> 44.0125 | C112: =$C$7*$G$112 -> 38.4125 | D112: =$D$7*$G$112 -> 27.2125 | E112: =$E$7*$G$112 -> 21.6125 | F112: è | G112: 0.0175
A113: 15th | B113: =$B$7*$G$113 -> 37.725 | C113: =$C$7*$G$113 -> 32.925 | D113: =$D$7*$G$113 -> 23.325 | E113: =$E$7*$G$113 -> 18.525 | F113: è | G113: 0.015
A114: Totals | B114: =SUM(B99:B113) -> 2515 | C114: =SUM(C99:C113) -> 2195 | D114: 1555 | E114: 1235 | F114: =B114+C114+D114+E114 -> 7500 | G114: =SUM(G99:G113) -> 1
A116: For 751-1200 riders 20 places
A117: Placings | B117: 1D | C117: 2D | D117: 3D | E117: 4D
A118: 1st | B118: =$B$7*$G$118 -> 352.1 | C118: =$C$7*$G$118 -> 307.3 | D118: =$D$7*$G$118 -> 217.7 | E118: =$E$7*$G$118 -> 172.9 | F118: è | G118: 0.14
A119: 2nd | B119: =$B$7*$G$119 -> 276.65 | C119: =$C$7*$G$119 -> 241.45 | D119: =$D$7*$G$119 -> 171.05 | E119: =$E$7*$G$119 -> 135.85 | F119: è | G119: 0.11
A120: 3rd | B120: =$B$7*$G$120 -> 226.35 | C120: =$C$7*$G$120 -> 197.55 | D120: =$D$7*$G$120 -> 139.95 | E120: =$E$7*$G$120 -> 111.15 | F120: è | G120: 0.09
A121: 4th | B121: =$B$7*$G$121 -> 193.655 | C121: =$C$7*$G$121 -> 169.015 | D121: =$D$7*$G$121 -> 119.735 | E121: =$E$7*$G$121 -> 95.095 | F121: è | G121: 0.077
A122: 5th | B122: =$B$7*$G$122 -> 176.05 | C122: =$C$7*$G$122 -> 153.65 | D122: =$D$7*$G$122 -> 108.85 | E122: =$E$7*$G$122 -> 86.45 | F122: è | G122: 0.07
A123: 6th | B123: =$B$7*$G$123 -> 163.475 | C123: =$C$7*$G$123 -> 142.675 | D123: =$D$7*$G$123 -> 101.075 | E123: =$E$7*$G$123 -> 80.275 | F123: è | G123: 0.065
A124: 7th | B124: =$B$7*$G$124 -> 150.9 | C124: =$C$7*$G$124 -> 131.7 | D124: =$D$7*$G$124 -> 93.3 | E124: =$E$7*$G$124 -> 74.1 | F124: è | G124: 0.06
A125: 8th | B125: =$B$7*$G$125 -> 138.325 | C125: =$C$7*$G$125 -> 120.725 | D125: =$D$7*$G$125 -> 85.525 | E125: =$E$7*$G$125 -> 67.925 | F125: è | G125: 0.055
A126: 9th | B126: =$B$7*$G$126 -> 125.75 | C126: =$C$7*$G$126 -> 109.75 | D126: =$D$7*$G$126 -> 77.75 | E126: =$E$7*$G$126 -> 61.75 | F126: è | G126: 0.05
A127: 10th | B127: =$B$7*$G$127 -> 113.175 | C127: =$C$7*$G$127 -> 98.775 | D127: =$D$7*$G$127 -> 69.975 | E127: =$E$7*$G$127 -> 55.575 | F127: è | G127: 0.045
A128: 11th | B128: =$B$7*$G$128 -> 100.6 | C128: =$C$7*$G$128 -> 87.8 | D128: =$D$7*$G$128 -> 62.2 | E128: =$E$7*$G$128 -> 49.4 | F128: è | G128: 0.04
A129: 12th | B129: =$B$7*$G$129 -> 93.055 | C129: =$C$7*$G$129 -> 81.215 | D129: =$D$7*$G$129 -> 57.535 | E129: =$E$7*$G$129 -> 45.695 | F129: è | G129: 0.037
A130: 13th | B130: =$B$7*$G$130 -> 82.995 | C130: =$C$7*$G$130 -> 72.435 | D130: =$D$7*$G$130 -> 51.315 | E130: =$E$7*$G$130 -> 40.755 | F130: è | G130: 0.033
A131: 14th | B131: =$B$7*$G$131 -> 72.935 | C131: =$C$7*$G$131 -> 63.655 | D131: =$D$7*$G$131 -> 45.095 | E131: =$E$7*$G$131 -> 35.815 | F131: è | G131: 0.029
A132: 15th | B132: =$B$7*$G$132 -> 62.875 | C132: =$C$7*$G$132 -> 54.875 | D132: =$D$7*$G$132 -> 38.875 | E132: =$E$7*$G$132 -> 30.875 | F132: è | G132: 0.025
A133: 16th | B133: =$B$7*$G$133 -> 52.815 | C133: =$C$7*$G$133 -> 46.095 | D133: =$D$7*$G$133 -> 32.655 | E133: =$E$7*$G$133 -> 25.935 | F133: è | G133: 0.021
A134: 17th | B134: =$B$7*$G$134 -> 42.755 | C134: =$C$7*$G$134 -> 37.315 | D134: =$D$7*$G$134 -> 26.435 | E134: =$E$7*$G$134 -> 20.995 | F134: è | G134: 0.017
A135: 18th | B135: =$B$7*$G$135 -> 35.21 | C135: =$C$7*$G$135 -> 30.73 | D135: =$D$7*$G$135 -> 21.77 | E135: =$E$7*$G$135 -> 17.29 | F135: è | G135: 0.014
A136: 19th | B136: =$B$7*$G$136 -> 30.18 | C136: =$C$7*$G$136 -> 26.34 | D136: =$D$7*$G$136 -> 18.66 | E136: =$E$7*$G$136 -> 14.82 | F136: è | G136: 0.012
A137: 20th | B137: =$B$7*$G$137 -> 25.15 | C137: =$C$7*$G$137 -> 21.95 | D137: =$D$7*$G$137 -> 15.55 | E137: =$E$7*$G$137 -> 12.35 | F137: è | G137: 0.01
A138: Totals | B138: =SUM(B118:B137) -> 2515 | C138: =SUM(C118:C137) -> 2195 | D138: 1555 | E138: 1235 | F138: =B138+C138+D138+E138 -> 7500 | G138: =SUM(G118:G137) -> 1
A140: For 1201 or More riders 30 places
A141: Placings | B141: 1D | C141: 2D | D141: 3D | E141: 4D
A142: 1st | B142: =$B$7*$G$142 -> 301.8 | C142: =$C$7*$G$142 -> 263.4 | D142: =$D$7*$G$142 -> 186.6 | E142: =$E$7*$G$142 -> 148.2 | F142: è | G142: 0.12
A143: 2nd | B143: =$B$7*$G$143 -> 238.925 | C143: =$C$7*$G$143 -> 208.525 | D143: =$D$7*$G$143 -> 147.725 | E143: =$E$7*$G$143 -> 117.325 | F143: è | G143: 0.095
A144: 3rd | B144: =$B$7*$G$144 -> 183.595 | C144: =$C$7*$G$144 -> 160.235 | D144: =$D$7*$G$144 -> 113.515 | E144: =$E$7*$G$144 -> 90.155 | F144: è | G144: 0.073
A145: 4th | B145: =$B$7*$G$145 -> 155.93 | C145: =$C$7*$G$145 -> 136.09 | D145: =$D$7*$G$145 -> 96.41 | E145: =$E$7*$G$145 -> 76.57 | F145: è | G145: 0.062
A146: 5th | B146: =$B$7*$G$146 -> 125.75 | C146: =$C$7*$G$146 -> 109.75 | D146: =$D$7*$G$146 -> 77.75 | E146: =$E$7*$G$146 -> 61.75 | F146: è | G146: 0.05
A147: 6th | B147: =$B$7*$G$147 -> 113.175 | C147: =$C$7*$G$147 -> 98.775 | D147: =$D$7*$G$147 -> 69.975 | E147: =$E$7*$G$147 -> 55.575 | F147: è | G147: 0.045
A148: 7th | B148: =$B$7*$G$148 -> 108.145 | C148: =$C$7*$G$148 -> 94.385 | D148: =$D$7*$G$148 -> 66.865 | E148: =$E$7*$G$148 -> 53.105 | F148: è | G148: 0.043
A149: 8th | B149: =$B$7*$G$149 -> 100.6 | C149: =$C$7*$G$149 -> 87.8 | D149: =$D$7*$G$149 -> 62.2 | E149: =$E$7*$G$149 -> 49.4 | F149: è | G149: 0.04
A150: 9th | B150: =$B$7*$G$150 -> 93.055 | C150: =$C$7*$G$150 -> 81.215 | D150: =$D$7*$G$150 -> 57.535 | E150: =$E$7*$G$150 -> 45.695 | F150: è | G150: 0.037
A151: 10th | B151: =$B$7*$G$151 -> 88.025 | C151: =$C$7*$G$151 -> 76.825 | D151: =$D$7*$G$151 -> 54.425 | E151: =$E$7*$G$151 -> 43.225 | F151: è | G151: 0.035
A152: 11th | B152: =$B$7*$G$152 -> 82.995 | C152: =$C$7*$G$152 -> 72.435 | D152: =$D$7*$G$152 -> 51.315 | E152: =$E$7*$G$152 -> 40.755 | F152: è | G152: 0.033
A153: 12th | B153: =$B$7*$G$153 -> 77.965 | C153: =$C$7*$G$153 -> 68.045 | D153: =$D$7*$G$153 -> 48.205 | E153: =$E$7*$G$153 -> 38.285 | F153: è | G153: 0.031
A154: 13th | B154: =$B$7*$G$154 -> 72.935 | C154: =$C$7*$G$154 -> 63.655 | D154: =$D$7*$G$154 -> 45.095 | E154: =$E$7*$G$154 -> 35.815 | F154: è | G154: 0.029
A155: 14th | B155: =$B$7*$G$155 -> 67.905 | C155: =$C$7*$G$155 -> 59.265 | D155: =$D$7*$G$155 -> 41.985 | E155: =$E$7*$G$155 -> 33.345 | F155: è | G155: 0.027
A156: 15th | B156: =$B$7*$G$156 -> 62.875 | C156: =$C$7*$G$156 -> 54.875 | D156: =$D$7*$G$156 -> 38.875 | E156: =$E$7*$G$156 -> 30.875 | F156: è | G156: 0.025
A157: 16th | B157: =$B$7*$G$157 -> 60.36 | C157: =$C$7*$G$157 -> 52.68 | D157: =$D$7*$G$157 -> 37.32 | E157: =$E$7*$G$157 -> 29.64 | F157: è | G157: 0.024
A158: 17th | B158: =$B$7*$G$158 -> 57.845 | C158: =$C$7*$G$158 -> 50.485 | D158: =$D$7*$G$158 -> 35.765 | E158: =$E$7*$G$158 -> 28.405 | F158: è | G158: 0.023
A159: 18th | B159: =$B$7*$G$159 -> 55.33 | C159: =$C$7*$G$159 -> 48.29 | D159: =$D$7*$G$159 -> 34.21 | E159: =$E$7*$G$159 -> 27.17 | F159: è | G159: 0.022
A160: 19th | B160: =$B$7*$G$160 -> 52.815 | C160: =$C$7*$G$160 -> 46.095 | D160: =$D$7*$G$160 -> 32.655 | E160: =$E$7*$G$160 -> 25.935 | F160: è | G160: 0.021
A161: 20th | B161: =$B$7*$G$161 -> 50.3 | C161: =$C$7*$G$161 -> 43.9 | D161: =$D$7*$G$161 -> 31.1 | E161: =$E$7*$G$161 -> 24.7 | F161: è | G161: 0.02
A162: 21st | B162: =$B$7*$G$162 -> 47.785 | C162: =$C$7*$G$162 -> 41.705 | D162: =$D$7*$G$162 -> 29.545 | E162: =$E$7*$G$162 -> 23.465 | F162: è | G162: 0.019
A163: 22nd | B163: =$B$7*$G$163 -> 45.27 | C163: =$C$7*$G$163 -> 39.51 | D163: =$D$7*$G$163 -> 27.99 | E163: =$E$7*$G$163 -> 22.23 | F163: è | G163: 0.018
A164: 23rd | B164: =$B$7*$G$164 -> 42.755 | C164: =$C$7*$G$164 -> 37.315 | D164: =$D$7*$G$164 -> 26.435 | E164: =$E$7*$G$164 -> 20.995 | F164: è | G164: 0.017
A165: 24th | B165: =$B$7*$G$165 -> 40.24 | C165: =$C$7*$G$165 -> 35.12 | D165: =$D$7*$G$165 -> 24.88 | E165: =$E$7*$G$165 -> 19.76 | F165: è | G165: 0.016
A166: 25th | B166: =$B$7*$G$166 -> 37.725 | C166: =$C$7*$G$166 -> 32.925 | D166: =$D$7*$G$166 -> 23.325 | E166: =$E$7*$G$166 -> 18.525 | F166: è | G166: 0.015
A167: 26th | B167: =$B$7*$G$167 -> 35.21 | C167: =$C$7*$G$167 -> 30.73 | D167: =$D$7*$G$167 -> 21.77 | E167: =$E$7*$G$167 -> 17.29 | F167: è | G167: 0.014
A168: 27th | B168: =$B$7*$G$168 -> 32.695 | C168: =$C$7*$G$168 -> 28.535 | D168: =$D$7*$G$168 -> 20.215 | E168: =$E$7*$G$168 -> 16.055 | F168: è | G168: 0.013
A169: 28th | B169: =$B$7*$G$169 -> 30.18 | C169: =$C$7*$G$169 -> 26.34 | D169: =$D$7*$G$169 -> 18.66 | E169: =$E$7*$G$169 -> 14.82 | F169: è | G169: 0.012
A170: 29th | B170: =$B$7*$G$170 -> 27.665 | C170: =$C$7*$G$170 -> 24.145 | D170: =$D$7*$G$170 -> 17.105 | E170: =$E$7*$G$170 -> 13.585 | F170: è | G170: 0.011
A171: 30th | B171: =$B$7*$G$171 -> 25.15 | C171: =$C$7*$G$171 -> 21.95 | D171: =$D$7*$G$171 -> 15.55 | E171: =$E$7*$G$171 -> 12.35 | F171: è | G171: 0.01
A172: Totals | B172: =SUM(B142:B171) -> 2515 | C172: =SUM(C142:C171) -> 2195 | D172: =SUM(D142:D171) -> 1555 | E172: =SUM(E142:E171) -> 1235 | F172: =B172+C172+D172+E172 -> 7500 | G172: =SUM(G142:G171) -> 1

Sheet 5D Payout BBR
A1: 5D Payout BBR
A2: Entry Fee | B2: # Entries | C2: % Payback | D2: $ From Entry | E2: Added $ | F2: Total Payout | G2: Total $ Held
A3: 100 | B3: 4 | C3: 0.8 | D3: =$A$3*$C$3*$B$3 -> 320 | F3: =($A$3*$C$3)*$B$3+$E$3 -> 320 | G3: =$A$3*(100%-$C$3)*$B$3 -> 80
A5: % in each D | B5: 0.3 | C5: 0.25 | D5: 0.2 | E5: 0.15 | F5: 0.1 | G5: Total % Payout | H5: =SUM(B5:F5) -> 1
B6: 1D | C6: 2D | D6: 3D | E6: 4D | F6: 5D
B7: =(($A$3*$B$3*$C$3*$B$5)+($E$3*$B$5)) -> 96 | C7: =(($A$3*$B$3*$C$3*$C$5)+($E$3*$C$5)) -> 80 | D7: =(($A$3*$B$3*$C$3*$D$5)+($E$3*$D$5)) -> 64 | E7: =(($A$3*$B$3*$C$3*$E$5)+($E$3*$E$5)) -> 48 | F7: =(($A$3*$B$3*$C$3*$F$5)+($E$3*$F$5)) -> 32
A8: Totals | B8: =SUM(B7) -> 96 | C8: =SUM(C7) -> 80 | D8: 64 | E8: 48 | F8: 32 | G8: =SUM(B8:F8) -> 320
A10: For 1-25 riders 1 place
A11: Placings | B11: 1D | C11: 2D | D11: 3D | E11: 4D | F11: 5D
A12: 1st | B12: =$B$7*$H$12 -> 96 | C12: =$C$7*$H$12 -> 80 | D12: =$D$7*$H$12 -> 64 | E12: =$E$7*$H$12 -> 48 | F12: =$F$7*$H$12 -> 32 | G12: è | H12: 1
A13: Totals | B13: =SUM(B12:B12) -> 96 | C13: =SUM(C12:C12) -> 80 | D13: =SUM(D12:D12) -> 64 | E13: =SUM(E12:E12) -> 48 | F13: =SUM(F12) -> 32 | G13: =SUM(B13:F13) -> 320 | H13: =SUM(H12) -> 1
A15: For 26-50 riders 2 places
A16: Placings | B16: 1D | C16: 2D | D16: 3D | E16: 4D | F16: 5D
A17: 1st | B17: =$B$7*$H$17 -> 57.6 | C17: =$C$7*$H$17 -> 48 | D17: =$D$7*$H$17 -> 38.4 | E17: =$E$7*$H$17 -> 28.8 | F17: =$F$7*$H$17 -> 19.2 | G17: è | H17: 0.6
A18: 2nd | B18: =$B$7*$H$18 -> 38.4 | C18: =$C$7*$H$18 -> 32 | D18: =$D$7*$H$18 -> 25.6 | E18: =$E$7*$H$18 -> 19.2 | F18: =$F$7*$H$18 -> 12.8 | G18: è | H18: 0.4
A19: Totals | B19: =SUM(B17:B18) -> 96 | C19: =SUM(C17:C18) -> 80 | D19: =SUM(D17:D18) -> 64 | E19: =SUM(E17:E18) -> 48 | F19: =SUM(F17:F18) -> 32 | G19: =SUM(B19:F19) -> 320 | H19: =SUM(H17:H18) -> 1
A21: For 51-100 riders 3 places
A22: Placings | B22: 1D | C22: 2D | D22: 3D | E22: 4D | F22: 5D
A23: 1st | B23: =$B$7*$H$23 -> 48 | C23: =$C$7*$H$23 -> 40 | D23: =$D$7*$H$23 -> 32 | E23: =$E$7*$H$23 -> 24 | F23: =$F$7*$H$23 -> 16 | G23: è | H23: 0.5
A24: 2nd | B24: =$B$7*$H$24 -> 28.8 | C24: =$C$7*$H$24 -> 24 | D24: =$D$7*$H$24 -> 19.2 | E24: =$E$7*$H$24 -> 14.4 | F24: =$F$7*$H$24 -> 9.6 | G24: è | H24: 0.3
A25: 3rd | B25: =$B$7*$H$25 -> 19.2 | C25: =$C$7*$H$25 -> 16 | D25: =$D$7*$H$25 -> 12.8 | E25: =$E$7*$H$25 -> 9.6 | F25: =$F$7*$H$25 -> 6.4 | G25: è | H25: 0.2
A26: Totals | B26: =SUM(B23:B25) -> 96 | C26: =SUM(C23:C25) -> 80 | D26: =SUM(D23:D25) -> 64 | E26: =SUM(E23:E25) -> 48 | F26: =SUM(F23:F25) -> 32 | G26: =SUM(B26:F26) -> 320 | H26: =SUM(H23:H25) -> 1
A28: For 101-143 riders 4 places
A29: Placings | B29: 1D | C29: 2D | D29: 3D | E29: 4D | F29: 5D
A30: 1st | B30: =$B$7*$H$30 -> 38.4 | C30: =$C$7*$H$30 -> 32 | D30: =$D$7*$H$30 -> 25.6 | E30: =$E$7*$H$30 -> 19.2 | F30: =$F$7*$H$30 -> 12.8 | G30: è | H30: 0.4
A31: 2nd | B31: =$B$7*$H$31 -> 28.8 | C31: =$C$7*$H$31 -> 24 | D31: =$D$7*$H$31 -> 19.2 | E31: =$E$7*$H$31 -> 14.4 | F31: =$F$7*$H$31 -> 9.6 | G31: è | H31: 0.3
A32: 3rd | B32: =$B$7*$H$32 -> 19.2 | C32: =$C$7*$H$32 -> 16 | D32: =$D$7*$H$32 -> 12.8 | E32: =$E$7*$H$32 -> 9.6 | F32: =$F$7*$H$32 -> 6.4 | G32: è | H32: 0.2
A33: 4th | B33: =$B$7*$H$33 -> 9.6 | C33: =$C$7*$H$33 -> 8 | D33: =$D$7*$H$33 -> 6.4 | E33: =$E$7*$H$33 -> 4.8 | F33: =$F$7*$H$33 -> 3.2 | G33: è | H33: 0.1
A34: Totals | B34: =SUM(B30:B33) -> 96 | C34: =SUM(C30:C33) -> 80 | D34: =SUM(D30:D33) -> 64 | E34: =SUM(E30:E33) -> 48 | F34: =SUM(F30:F33) -> 32 | G34: =SUM(B34:F34) -> 320 | H34: =SUM(H30:H33) -> 1
A36: For 144-200 riders 5 places
A37: Placings | B37: 1D | C37: 2D | D37: 3D | E37: 4D | F37: 5D
A38: 1st | B38: =$B$7*$H$38 -> 31.68 | C38: =$C$7*$H$38 -> 26.4 | D38: =$D$7*$H$38 -> 21.12 | E38: =$E$7*$H$38 -> 15.84 | F38: =$F$7*$H$38 -> 10.56 | G38: è | H38: 0.33
A39: 2nd | B39: =$B$7*$H$39 -> 25.92 | C39: =$C$7*$H$39 -> 21.6 | D39: =$D$7*$H$39 -> 17.28 | E39: =$E$7*$H$39 -> 12.96 | F39: =$F$7*$H$39 -> 8.64 | G39: è | H39: 0.27
A40: 3rd | B40: =$B$7*$H$40 -> 19.2 | C40: =$C$7*$H$40 -> 16 | D40: =$D$7*$H$40 -> 12.8 | E40: =$E$7*$H$40 -> 9.6 | F40: =$F$7*$H$40 -> 6.4 | G40: è | H40: 0.2
A41: 4th | B41: =$B$7*$H$41 -> 12.48 | C41: =$C$7*$H$41 -> 10.4 | D41: =$D$7*$H$41 -> 8.32 | E41: =$E$7*$H$41 -> 6.24 | F41: =$F$7*$H$41 -> 4.16 | G41: è | H41: 0.13
A42: 5th | B42: =$B$7*$H$42 -> 6.72 | C42: =$C$7*$H$42 -> 5.6 | D42: =$D$7*$H$42 -> 4.48 | E42: =$E$7*$H$42 -> 3.36 | F42: =$F$7*$H$42 -> 2.24 | G42: è | H42: 0.07
A43: Totals | B43: =SUM(B38:B42) -> 96 | C43: =SUM(C38:C42) -> 80 | D43: =SUM(D38:D42) -> 64 | E43: =SUM(E38:E42) -> 48 | F43: =SUM(F38:F42) -> 32 | G43: =SUM(B43:F43) -> 320 | H43: =SUM(H38:H42) -> 1
A45: For 201-250 riders 6 places
A46: Placings | B46: 1D | C46: 2D | D46: 3D | E46: 4D | F46: 5D
A47: 1st | B47: =$B$7*$H$47 -> 27.84 | C47: =$C$7*$H$47 -> 23.2 | D47: =$D$7*$H$47 -> 18.56 | E47: =$E$7*$H$47 -> 13.92 | F47: =$F$7*$H$47 -> 9.28 | G47: è | H47: 0.29
A48: 2nd | B48: =$B$7*$H$48 -> 23.04 | C48: =$C$7*$H$48 -> 19.2 | D48: =$D$7*$H$48 -> 15.36 | E48: =$E$7*$H$48 -> 11.52 | F48: =$F$7*$H$48 -> 7.68 | G48: è | H48: 0.24
A49: 3rd | B49: =$B$7*$H$49 -> 18.24 | C49: =$C$7*$H$49 -> 15.2 | D49: =$D$7*$H$49 -> 12.16 | E49: =$E$7*$H$49 -> 9.12 | F49: =$F$7*$H$49 -> 6.08 | G49: è | H49: 0.19
A50: 4th | B50: =$B$7*$H$50 -> 13.44 | C50: =$C$7*$H$50 -> 11.2 | D50: =$D$7*$H$50 -> 8.96 | E50: =$E$7*$H$50 -> 6.72 | F50: =$F$7*$H$50 -> 4.48 | G50: è | H50: 0.14
A51: 5th | B51: =$B$7*$H$51 -> 8.64 | C51: =$C$7*$H$51 -> 7.2 | D51: =$D$7*$H$51 -> 5.76 | E51: =$E$7*$H$51 -> 4.32 | F51: =$F$7*$H$51 -> 2.88 | G51: è | H51: 0.09
A52: 6th | B52: =$B$7*$H$52 -> 4.8 | C52: =$C$7*$H$52 -> 4 | D52: =$D$7*$H$52 -> 3.2 | E52: =$E$7*$H$52 -> 2.4 | F52: =$F$7*$H$52 -> 1.6 | G52: è | H52: 0.05
A53: Totals | B53: =SUM(B47:B52) -> 96 | C53: =SUM(C47:C52) -> 80 | D53: =SUM(D47:D52) -> 64 | E53: =SUM(E47:E52) -> 48 | F53: =SUM(F47:F52) -> 32 | G53: =SUM(B53:F53) -> 320 | H53: =SUM(H47:H52) -> 1
A55: For 251-333 riders 8 places
A56: Placings | B56: 1D | C56: 2D | D56: 3D | E56: 4D | F56: 5D
A57: 1st | B57: =$B$7*$H$57 -> 23.04 | C57: =$C$7*$H$57 -> 19.2 | D57: =$D$7*$H$57 -> 15.36 | E57: =$E$7*$H$57 -> 11.52 | F57: =$F$7*$H$57 -> 7.68 | G57: è | H57: 0.24
A58: 2nd | B58: =$B$7*$H$58 -> 19.2 | C58: =$C$7*$H$58 -> 16 | D58: =$D$7*$H$58 -> 12.8 | E58: =$E$7*$H$58 -> 9.6 | F58: =$F$7*$H$58 -> 6.4 | G58: è | H58: 0.2
A59: 3rd | B59: =$B$7*$H$59 -> 16.32 | C59: =$C$7*$H$59 -> 13.6 | D59: =$D$7*$H$59 -> 10.88 | E59: =$E$7*$H$59 -> 8.16 | F59: =$F$7*$H$59 -> 5.44 | G59: è | H59: 0.17
A60: 4th | B60: =$B$7*$H$60 -> 12.48 | C60: =$C$7*$H$60 -> 10.4 | D60: =$D$7*$H$60 -> 8.32 | E60: =$E$7*$H$60 -> 6.24 | F60: =$F$7*$H$60 -> 4.16 | G60: è | H60: 0.13
A61: 5th | B61: =$B$7*$H$61 -> 9.6 | C61: =$C$7*$H$61 -> 8 | D61: =$D$7*$H$61 -> 6.4 | E61: =$E$7*$H$61 -> 4.8 | F61: =$F$7*$H$61 -> 3.2 | G61: è | H61: 0.1
A62: 6th | B62: =$B$7*$H$62 -> 6.72 | C62: =$C$7*$H$62 -> 5.6 | D62: =$D$7*$H$62 -> 4.48 | E62: =$E$7*$H$62 -> 3.36 | F62: =$F$7*$H$62 -> 2.24 | G62: è | H62: 0.07
A63: 7th | B63: =$B$7*$H$63 -> 4.8 | C63: =$C$7*$H$63 -> 4 | D63: =$D$7*$H$63 -> 3.2 | E63: =$E$7*$H$63 -> 2.4 | F63: =$F$7*$H$63 -> 1.6 | G63: è | H63: 0.05
A64: 8th | B64: =$B$7*$H$64 -> 3.84 | C64: =$C$7*$H$64 -> 3.2 | D64: =$D$7*$H$64 -> 2.56 | E64: =$E$7*$H$64 -> 1.92 | F64: =$F$7*$H$64 -> 1.28 | G64: è | H64: 0.04
A65: Totals | B65: =SUM(B57:B64) -> 96 | C65: =SUM(C57:C64) -> 80 | D65: =SUM(D57:D64) -> 64 | E65: =SUM(E57:E64) -> 48 | F65: =SUM(F57:F64) -> 32 | G65: =SUM(B65:F65) -> 320 | H65: =SUM(H57:H64) -> 1
A67: For 334-500 riders 10 places
A68: Placings | B68: 1D | C68: 2D | D68: 3D | E68: 4D | F68: 5D
A69: 1st | B69: =$B$7*$H$69 -> 20.16 | C69: =$C$7*$H$69 -> 16.8 | D69: =$D$7*$H$69 -> 13.44 | E69: =$E$7*$H$69 -> 10.08 | F69: =$F$7*$H$69 -> 6.72 | G69: è | H69: 0.21
A70: 2nd | B70: =$B$7*$H$70 -> 17.28 | C70: =$C$7*$H$70 -> 14.4 | D70: =$D$7*$H$70 -> 11.52 | E70: =$E$7*$H$70 -> 8.64 | F70: =$F$7*$H$70 -> 5.76 | G70: è | H70: 0.18
A71: 3rd | B71: =$B$7*$H$71 -> 14.4 | C71: =$C$7*$H$71 -> 12 | D71: =$D$7*$H$71 -> 9.6 | E71: =$E$7*$H$71 -> 7.2 | F71: =$F$7*$H$71 -> 4.8 | G71: è | H71: 0.15
A72: 4th | B72: =$B$7*$H$72 -> 11.52 | C72: =$C$7*$H$72 -> 9.6 | D72: =$D$7*$H$72 -> 7.68 | E72: =$E$7*$H$72 -> 5.76 | F72: =$F$7*$H$72 -> 3.84 | G72: è | H72: 0.12
A73: 5th | B73: =$B$7*$H$73 -> 8.64 | C73: =$C$7*$H$73 -> 7.2 | D73: =$D$7*$H$73 -> 5.76 | E73: =$E$7*$H$73 -> 4.32 | F73: =$F$7*$H$73 -> 2.88 | G73: è | H73: 0.09
A74: 6th | B74: =$B$7*$H$74 -> 6.72 | C74: =$C$7*$H$74 -> 5.6 | D74: =$D$7*$H$74 -> 4.48 | E74: =$E$7*$H$74 -> 3.36 | F74: =$F$7*$H$74 -> 2.24 | G74: è | H74: 0.07
A75: 7th | B75: =$B$7*$H$75 -> 5.76 | C75: =$C$7*$H$75 -> 4.8 | D75: =$D$7*$H$75 -> 3.84 | E75: =$E$7*$H$75 -> 2.88 | F75: =$F$7*$H$75 -> 1.92 | G75: è | H75: 0.06
A76: 8th | B76: =$B$7*$H$76 -> 4.8 | C76: =$C$7*$H$76 -> 4 | D76: =$D$7*$H$76 -> 3.2 | E76: =$E$7*$H$76 -> 2.4 | F76: =$F$7*$H$76 -> 1.6 | G76: è | H76: 0.05
A77: 9th | B77: =$B$7*$H$77 -> 3.84 | C77: =$C$7*$H$77 -> 3.2 | D77: =$D$7*$H$77 -> 2.56 | E77: =$E$7*$H$77 -> 1.92 | F77: =$F$7*$H$77 -> 1.28 | G77: è | H77: 0.04
A78: 10th | B78: =$B$7*$H$78 -> 2.88 | C78: =$C$7*$H$78 -> 2.4 | D78: =$D$7*$H$78 -> 1.92 | E78: =$E$7*$H$78 -> 1.44 | F78: =$F$7*$H$78 -> 0.96 | G78: è | H78: 0.03
A79: Totals | B79: =SUM(B69:B78) -> 96 | C79: =SUM(C69:C78) -> 80 | D79: 64 | E79: 48 | F79: 32 | G79: =SUM(B79:F79) -> 320 | H79: =SUM(H69:H78) -> 1
A81: For 501-666 riders 12 places
A82: Placings | B82: 1D | C82: 2D | D82: 3D | E82: 4D | F82: 5D
A83: 1st | B83: =$B$7*$H$83 -> 18.24 | C83: =$C$7*$H$83 -> 15.2 | D83: =$D$7*$H$83 -> 12.16 | E83: =$E$7*$H$83 -> 9.12 | F83: =$F$7*$H$83 -> 6.08 | G83: è | H83: 0.19
A84: 2nd | B84: =$B$7*$H$84 -> 14.4 | C84: =$C$7*$H$84 -> 12 | D84: =$D$7*$H$84 -> 9.6 | E84: =$E$7*$H$84 -> 7.2 | F84: =$F$7*$H$84 -> 4.8 | G84: è | H84: 0.15
A85: 3rd | B85: =$B$7*$H$85 -> 11.52 | C85: =$C$7*$H$85 -> 9.6 | D85: =$D$7*$H$85 -> 7.68 | E85: =$E$7*$H$85 -> 5.76 | F85: =$F$7*$H$85 -> 3.84 | G85: è | H85: 0.12
A86: 4th | B86: =$B$7*$H$86 -> 9.6 | C86: =$C$7*$H$86 -> 8 | D86: =$D$7*$H$86 -> 6.4 | E86: =$E$7*$H$86 -> 4.8 | F86: =$F$7*$H$86 -> 3.2 | G86: è | H86: 0.1
A87: 5th | B87: =$B$7*$H$87 -> 8.64 | C87: =$C$7*$H$87 -> 7.2 | D87: =$D$7*$H$87 -> 5.76 | E87: =$E$7*$H$87 -> 4.32 | F87: =$F$7*$H$87 -> 2.88 | G87: è | H87: 0.09
A88: 6th | B88: =$B$7*$H$88 -> 7.68 | C88: =$C$7*$H$88 -> 6.4 | D88: =$D$7*$H$88 -> 5.12 | E88: =$E$7*$H$88 -> 3.84 | F88: =$F$7*$H$88 -> 2.56 | G88: è | H88: 0.08
A89: 7th | B89: =$B$7*$H$89 -> 6.72 | C89: =$C$7*$H$89 -> 5.6 | D89: =$D$7*$H$89 -> 4.48 | E89: =$E$7*$H$89 -> 3.36 | F89: =$F$7*$H$89 -> 2.24 | G89: è | H89: 0.07
A90: 8th | B90: =$B$7*$H$90 -> 5.76 | C90: =$C$7*$H$90 -> 4.8 | D90: =$D$7*$H$90 -> 3.84 | E90: =$E$7*$H$90 -> 2.88 | F90: =$F$7*$H$90 -> 1.92 | G90: è | H90: 0.06
A91: 9th | B91: =$B$7*$H$91 -> 4.8 | C91: =$C$7*$H$91 -> 4 | D91: =$D$7*$H$91 -> 3.2 | E91: =$E$7*$H$91 -> 2.4 | F91: =$F$7*$H$91 -> 1.6 | G91: è | H91: 0.05
A92: 10th | B92: =$B$7*$H$92 -> 3.84 | C92: =$C$7*$H$92 -> 3.2 | D92: =$D$7*$H$92 -> 2.56 | E92: =$E$7*$H$92 -> 1.92 | F92: =$F$7*$H$92 -> 1.28 | G92: è | H92: 0.04
A93: 11th | B93: =$B$7*$H$93 -> 2.88 | C93: =$C$7*$H$93 -> 2.4 | D93: =$D$7*$H$93 -> 1.92 | E93: =$E$7*$H$93 -> 1.44 | F93: =$F$7*$H$93 -> 0.96 | G93: è | H93: 0.03
A94: 12th | B94: =$B$7*$H$94 -> 1.92 | C94: =$C$7*$H$94 -> 1.6 | D94: =$D$7*$H$94 -> 1.28 | E94: =$E$7*$H$94 -> 0.96 | F94: =$F$7*$H$94 -> 0.64 | G94: è | H94: 0.02
A95: Totals | B95: =SUM(B83:B94) -> 96 | C95: =SUM(C83:C94) -> 80 | D95: =SUM(D83:D94) -> 64 | E95: =SUM(E83:E94) -> 48 | F95: =SUM(F83:F94) -> 32 | G95: =SUM(B95:F95) -> 320 | H95: =SUM(H83:H94) -> 1
A97: For 667-1000 riders 15 places
A98: Placings | B98: 1D | C98: 2D | D98: 3D | E98: 4D | F98: 5D
A99: 1st | B99: =$B$7*$H$99 -> 17.28 | C99: =$C$7*$H$99 -> 14.4 | D99: =$D$7*$H$99 -> 11.52 | E99: =$E$7*$H$99 -> 8.64 | F99: =$F$7*$H$99 -> 5.76 | G99: è | H99: 0.18
A100: 2nd | B100: =$B$7*$H$100 -> 14.4 | C100: =$C$7*$H$100 -> 12 | D100: =$D$7*$H$100 -> 9.6 | E100: =$E$7*$H$100 -> 7.2 | F100: =$F$7*$H$100 -> 4.8 | G100: è | H100: 0.15
A101: 3rd | B101: =$B$7*$H$101 -> 11.52 | C101: =$C$7*$H$101 -> 9.6 | D101: =$D$7*$H$101 -> 7.68 | E101: =$E$7*$H$101 -> 5.76 | F101: =$F$7*$H$101 -> 3.84 | G101: è | H101: 0.12
A102: 4th | B102: =$B$7*$H$102 -> 9.6 | C102: =$C$7*$H$102 -> 8 | D102: =$D$7*$H$102 -> 6.4 | E102: =$E$7*$H$102 -> 4.8 | F102: =$F$7*$H$102 -> 3.2 | G102: è | H102: 0.1
A103: 5th | B103: =$B$7*$H$103 -> 8.16 | C103: =$C$7*$H$103 -> 6.8 | D103: =$D$7*$H$103 -> 5.44 | E103: =$E$7*$H$103 -> 4.08 | F103: =$F$7*$H$103 -> 2.72 | G103: è | H103: 0.085
A104: 6th | B104: =$B$7*$H$104 -> 6.72 | C104: =$C$7*$H$104 -> 5.6 | D104: =$D$7*$H$104 -> 4.48 | E104: =$E$7*$H$104 -> 3.36 | F104: =$F$7*$H$104 -> 2.24 | G104: è | H104: 0.07
A105: 7th | B105: =$B$7*$H$105 -> 5.76 | C105: =$C$7*$H$105 -> 4.8 | D105: =$D$7*$H$105 -> 3.84 | E105: =$E$7*$H$105 -> 2.88 | F105: =$F$7*$H$105 -> 1.92 | G105: è | H105: 0.06
A106: 8th | B106: =$B$7*$H$106 -> 4.8 | C106: =$C$7*$H$106 -> 4 | D106: =$D$7*$H$106 -> 3.2 | E106: =$E$7*$H$106 -> 2.4 | F106: =$F$7*$H$106 -> 1.6 | G106: è | H106: 0.05
A107: 9th | B107: =$B$7*$H$107 -> 4.08 | C107: =$C$7*$H$107 -> 3.4 | D107: =$D$7*$H$107 -> 2.72 | E107: =$E$7*$H$107 -> 2.04 | F107: =$F$7*$H$107 -> 1.36 | G107: è | H107: 0.0425
A108: 10th | B108: =$B$7*$H$108 -> 3.36 | C108: =$C$7*$H$108 -> 2.8 | D108: =$D$7*$H$108 -> 2.24 | E108: =$E$7*$H$108 -> 1.68 | F108: =$F$7*$H$108 -> 1.12 | G108: è | H108: 0.035
A109: 11th | B109: =$B$7*$H$109 -> 2.88 | C109: =$C$7*$H$109 -> 2.4 | D109: =$D$7*$H$109 -> 1.92 | E109: =$E$7*$H$109 -> 1.44 | F109: =$F$7*$H$109 -> 0.96 | G109: è | H109: 0.03
A110: 12th | B110: =$B$7*$H$110 -> 2.4 | C110: =$C$7*$H$110 -> 2 | D110: =$D$7*$H$110 -> 1.6 | E110: =$E$7*$H$110 -> 1.2 | F110: =$F$7*$H$110 -> 0.8 | G110: è | H110: 0.025
A111: 13th | B111: =$B$7*$H$111 -> 1.92 | C111: =$C$7*$H$111 -> 1.6 | D111: =$D$7*$H$111 -> 1.28 | E111: =$E$7*$H$111 -> 0.96 | F111: =$F$7*$H$111 -> 0.64 | G111: è | H111: 0.02
A112: 14th | B112: =$B$7*$H$112 -> 1.68 | C112: =$C$7*$H$112 -> 1.4 | D112: =$D$7*$H$112 -> 1.12 | E112: =$E$7*$H$112 -> 0.84 | F112: =$F$7*$H$112 -> 0.56 | G112: è | H112: 0.0175
A113: 15th | B113: =$B$7*$H$113 -> 1.44 | C113: =$C$7*$H$113 -> 1.2 | D113: =$D$7*$H$113 -> 0.96 | E113: =$E$7*$H$113 -> 0.72 | F113: =$F$7*$H$113 -> 0.48 | G113: è | H113: 0.015
A114: Totals | B114: =SUM(B99:B113) -> 96 | C114: =SUM(C99:C113) -> 80 | D114: =SUM(D99:D113) -> 64 | E114: =SUM(E99:E113) -> 48 | F114: =SUM(F99:F113) -> 32 | G114: =SUM(B114:F114) -> 320 | H114: =SUM(H99:H113) -> 1
A116: For 1001-1500 riders 20 places
A117: Placings | B117: 1D | C117: 2D | D117: 3D | E117: 4D | F117: 5D
A118: 1st | B118: =$B$7*$H$118 -> 13.44 | C118: =$C$7*$H$118 -> 11.2 | D118: =$D$7*$H$118 -> 8.96 | E118: =$E$7*$H$118 -> 6.72 | F118: =$F$7*$H$118 -> 4.48 | G118: è | H118: 0.14
A119: 2nd | B119: =$B$7*$H$119 -> 10.56 | C119: =$C$7*$H$119 -> 8.8 | D119: =$D$7*$H$119 -> 7.04 | E119: =$E$7*$H$119 -> 5.28 | F119: =$F$7*$H$119 -> 3.52 | G119: è | H119: 0.11
A120: 3rd | B120: =$B$7*$H$120 -> 8.64 | C120: =$C$7*$H$120 -> 7.2 | D120: =$D$7*$H$120 -> 5.76 | E120: =$E$7*$H$120 -> 4.32 | F120: =$F$7*$H$120 -> 2.88 | G120: è | H120: 0.09
A121: 4th | B121: =$B$7*$H$121 -> 7.392 | C121: =$C$7*$H$121 -> 6.16 | D121: =$D$7*$H$121 -> 4.928 | E121: =$E$7*$H$121 -> 3.696 | F121: =$F$7*$H$121 -> 2.464 | G121: è | H121: 0.077
A122: 5th | B122: =$B$7*$H$122 -> 6.72 | C122: =$C$7*$H$122 -> 5.6 | D122: =$D$7*$H$122 -> 4.48 | E122: =$E$7*$H$122 -> 3.36 | F122: =$F$7*$H$122 -> 2.24 | G122: è | H122: 0.07
A123: 6th | B123: =$B$7*$H$123 -> 6.24 | C123: =$C$7*$H$123 -> 5.2 | D123: =$D$7*$H$123 -> 4.16 | E123: =$E$7*$H$123 -> 3.12 | F123: =$F$7*$H$123 -> 2.08 | G123: è | H123: 0.065
A124: 7th | B124: =$B$7*$H$124 -> 5.76 | C124: =$C$7*$H$124 -> 4.8 | D124: =$D$7*$H$124 -> 3.84 | E124: =$E$7*$H$124 -> 2.88 | F124: =$F$7*$H$124 -> 1.92 | G124: è | H124: 0.06
A125: 8th | B125: =$B$7*$H$125 -> 5.28 | C125: =$C$7*$H$125 -> 4.4 | D125: =$D$7*$H$125 -> 3.52 | E125: =$E$7*$H$125 -> 2.64 | F125: =$F$7*$H$125 -> 1.76 | G125: è | H125: 0.055
A126: 9th | B126: =$B$7*$H$126 -> 4.8 | C126: =$C$7*$H$126 -> 4 | D126: =$D$7*$H$126 -> 3.2 | E126: =$E$7*$H$126 -> 2.4 | F126: =$F$7*$H$126 -> 1.6 | G126: è | H126: 0.05
A127: 10th | B127: =$B$7*$H$127 -> 4.32 | C127: =$C$7*$H$127 -> 3.6 | D127: =$D$7*$H$127 -> 2.88 | E127: =$E$7*$H$127 -> 2.16 | F127: =$F$7*$H$127 -> 1.44 | G127: è | H127: 0.045
A128: 11th | B128: =$B$7*$H$128 -> 3.84 | C128: =$C$7*$H$128 -> 3.2 | D128: =$D$7*$H$128 -> 2.56 | E128: =$E$7*$H$128 -> 1.92 | F128: =$F$7*$H$128 -> 1.28 | G128: è | H128: 0.04
A129: 12th | B129: =$B$7*$H$129 -> 3.552 | C129: =$C$7*$H$129 -> 2.96 | D129: =$D$7*$H$129 -> 2.368 | E129: =$E$7*$H$129 -> 1.776 | F129: =$F$7*$H$129 -> 1.184 | G129: è | H129: 0.037
A130: 13th | B130: =$B$7*$H$130 -> 3.168 | C130: =$C$7*$H$130 -> 2.64 | D130: =$D$7*$H$130 -> 2.112 | E130: =$E$7*$H$130 -> 1.584 | F130: =$F$7*$H$130 -> 1.056 | G130: è | H130: 0.033
A131: 14th | B131: =$B$7*$H$131 -> 2.784 | C131: =$C$7*$H$131 -> 2.32 | D131: =$D$7*$H$131 -> 1.856 | E131: =$E$7*$H$131 -> 1.392 | F131: =$F$7*$H$131 -> 0.928 | G131: è | H131: 0.029
A132: 15th | B132: =$B$7*$H$132 -> 2.4 | C132: =$C$7*$H$132 -> 2 | D132: =$D$7*$H$132 -> 1.6 | E132: =$E$7*$H$132 -> 1.2 | F132: =$F$7*$H$132 -> 0.8 | G132: è | H132: 0.025
A133: 16th | B133: =$B$7*$H$133 -> 2.016 | C133: =$C$7*$H$133 -> 1.68 | D133: =$D$7*$H$133 -> 1.344 | E133: =$E$7*$H$133 -> 1.008 | F133: =$F$7*$H$133 -> 0.672 | G133: è | H133: 0.021
A134: 17th | B134: =$B$7*$H$134 -> 1.632 | C134: =$C$7*$H$134 -> 1.36 | D134: =$D$7*$H$134 -> 1.088 | E134: =$E$7*$H$134 -> 0.816 | F134: =$F$7*$H$134 -> 0.544 | G134: è | H134: 0.017
A135: 18th | B135: =$B$7*$H$135 -> 1.344 | C135: =$C$7*$H$135 -> 1.12 | D135: =$D$7*$H$135 -> 0.896 | E135: =$E$7*$H$135 -> 0.672 | F135: =$F$7*$H$135 -> 0.448 | G135: è | H135: 0.014
A136: 19th | B136: =$B$7*$H$136 -> 1.152 | C136: =$C$7*$H$136 -> 0.96 | D136: =$D$7*$H$136 -> 0.768 | E136: =$E$7*$H$136 -> 0.576 | F136: =$F$7*$H$136 -> 0.384 | G136: è | H136: 0.012
A137: 20th | B137: =$B$7*$H$137 -> 0.96 | C137: =$C$7*$H$137 -> 0.8 | D137: =$D$7*$H$137 -> 0.64 | E137: =$E$7*$H$137 -> 0.48 | F137: =$F$7*$H$137 -> 0.32 | G137: è | H137: 0.01
A138: Totals | B138: =SUM(B118:B137) -> 96 | C138: =SUM(C118:C137) -> 80 | D138: 64 | E138: 48 | F138: 32 | G138: =SUM(B138:F138) -> 320 | H138: =SUM(H118:H137) -> 1
A140: For 1501 or More riders 30 places
A141: Placings | B141: 1D | C141: 2D | D141: 3D | E141: 4D | F141: 5D
A142: 1st | B142: =$B$7*$H142 -> 11.52 | C142: =$C$7*$H142 -> 9.6 | D142: =$D$7*$H142 -> 7.68 | E142: =$E$7*$H142 -> 5.76 | F142: =$F$7*$H142 -> 3.84 | G142: è | H142: 0.12
A143: 2nd | B143: =$B$7*$H143 -> 9.12 | C143: 7.6 | D143: 6.08 | E143: 4.56 | F143: 3.04 | G143: è | H143: 0.095
A144: 3rd | B144: =$B$7*$H144 -> 7.008 | C144: 5.84 | D144: 4.672 | E144: 3.504 | F144: 2.336 | G144: è | H144: 0.073
A145: 4th | B145: =$B$7*$H145 -> 5.952 | C145: 4.96 | D145: 3.968 | E145: 2.976 | F145: 1.984 | G145: è | H145: 0.062
A146: 5th | B146: 4.8 | C146: 4 | D146: 3.2 | E146: 2.4 | F146: 1.6 | G146: è | H146: 0.05
A147: 6th | B147: 4.32 | C147: 3.6 | D147: 2.88 | E147: 2.16 | F147: 1.44 | G147: è | H147: 0.045
A148: 7th | B148: 4.128 | C148: 3.44 | D148: 2.752 | E148: 2.064 | F148: 1.376 | G148: è | H148: 0.043
A149: 8th | B149: 3.84 | C149: 3.2 | D149: 2.56 | E149: 1.92 | F149: 1.28 | G149: è | H149: 0.04
A150: 9th | B150: 3.552 | C150: 2.96 | D150: 2.368 | E150: 1.776 | F150: 1.184 | G150: è | H150: 0.037
A151: 10th | B151: 3.36 | C151: 2.8 | D151: 2.24 | E151: 1.68 | F151: 1.12 | G151: è | H151: 0.035
A152: 11th | B152: 3.168 | C152: 2.64 | D152: 2.112 | E152: 1.584 | F152: 1.056 | G152: è | H152: 0.033
A153: 12th | B153: 2.976 | C153: 2.48 | D153: 1.984 | E153: 1.488 | F153: 0.992 | G153: è | H153: 0.031
A154: 13th | B154: 2.784 | C154: 2.32 | D154: 1.856 | E154: 1.392 | F154: 0.928 | G154: è | H154: 0.029
A155: 14th | B155: 2.592 | C155: 2.16 | D155: 1.728 | E155: 1.296 | F155: 0.864 | G155: è | H155: 0.027
A156: 15th | B156: 2.4 | C156: 2 | D156: 1.6 | E156: 1.2 | F156: 0.8 | G156: è | H156: 0.025
A157: 16th | B157: 2.304 | C157: 1.92 | D157: 1.536 | E157: 1.152 | F157: 0.768 | G157: è | H157: 0.024
A158: 17th | B158: 2.208 | C158: 1.84 | D158: 1.472 | E158: 1.104 | F158: 0.736 | G158: è | H158: 0.023
A159: 18th | B159: 2.112 | C159: 1.76 | D159: 1.408 | E159: 1.056 | F159: 0.704 | G159: è | H159: 0.022
A160: 19th | B160: 2.016 | C160: 1.68 | D160: 1.344 | E160: 1.008 | F160: 0.672 | G160: è | H160: 0.021
A161: 20th | B161: 1.92 | C161: 1.6 | D161: 1.28 | E161: 0.96 | F161: 0.64 | G161: è | H161: 0.02
A162: 21st | B162: 1.824 | C162: 1.52 | D162: 1.216 | E162: 0.912 | F162: 0.608 | G162: è | H162: 0.019
A163: 22nd | B163: 1.728 | C163: 1.44 | D163: 1.152 | E163: 0.864 | F163: 0.576 | G163: è | H163: 0.018
A164: 23rd | B164: 1.632 | C164: 1.36 | D164: 1.088 | E164: 0.816 | F164: 0.544 | G164: è | H164: 0.017
A165: 24th | B165: 1.536 | C165: 1.28 | D165: 1.024 | E165: 0.768 | F165: 0.512 | G165: è | H165: 0.016
A166: 25th | B166: 1.44 | C166: 1.2 | D166: 0.96 | E166: 0.72 | F166: 0.48 | G166: è | H166: 0.015
A167: 26th | B167: 1.344 | C167: 1.12 | D167: 0.896 | E167: 0.672 | F167: 0.448 | G167: è | H167: 0.014
A168: 27th | B168: 1.248 | C168: 1.04 | D168: 0.832 | E168: 0.624 | F168: 0.416 | G168: è | H168: 0.013
A169: 28th | B169: 1.152 | C169: 0.96 | D169: 0.768 | E169: 0.576 | F169: 0.384 | G169: è | H169: 0.012
A170: 29th | B170: 1.056 | C170: 0.88 | D170: 0.704 | E170: 0.528 | F170: 0.352 | G170: è | H170: 0.011
A171: 30th | B171: 0.96 | C171: 0.8 | D171: 0.64 | E171: 0.48 | F171: 0.32 | G171: è | H171: 0.01
A172: Totals | B172: =SUM(B142:B171) -> 96 | C172: =SUM(C142:C171) -> 80 | D172: 64 | E172: 48 | F172: 32 | G172: =SUM(B172:F172) -> 320 | H172: =SUM(H142:H171) -> 1

Sheet DON'T TOUCH (hidden)
A2: Yes | C2: S | D2: 5 | E2: X
C3: A | D3: 10
C4: Y | D4: 15
C5: P | D5: BP
D6: SCR
